Department Family,Entity,Date Paid,Expense Type,Expense Area,Supplier,Transaction Number,Amount (�),Supplier VAT Registration Number
BEIS,Met Office,2020-12-03,06 ACCOMMODATION,CHIEF FINANCIAL OFFICER,A & J GARDEN SERVICES LTD,449675,375,190817003
BEIS,Met Office,2020-12-08,06 ACCOMMODATION,CHIEF FINANCIAL OFFICER,ABOVE THE REST COMMERCIAL CLEANING LTD,449792,565,166969348
BEIS,Met Office,2020-12-22,11 SERVICES,GOVERNMENT SERVICES,ACCELERATION EMARKETING,450276,2526.51,848940776
BEIS,Met Office,2020-12-10,06 ACCOMMODATION,CHIEF FINANCIAL OFFICER,ACTIVE PEST MANAGEMENT,450000,86.1,791419116
BEIS,Met Office,2020-12-15,11 SERVICES,OPERATIONS,ADJUST,450082,1425,-
BEIS,Met Office,2020-12-15,11 SERVICES,CORPORATE,ADJUST,450084,990,-
BEIS,Met Office,2020-12-09,10 EQUIPMENT MAINTENANCE,OPERATIONS,ADOLF THIES GMBH & CO. KG GOTTINGEN,22028,1589.28,-
BEIS,Met Office,2020-12-09,11 SERVICES,OPERATIONS,ADOLF THIES GMBH & CO. KG GOTTINGEN,22028,36.71,-
BEIS,Met Office,2020-12-08,11 SERVICES,GOVERNMENT SERVICES,ADOPSTAR,449840,1250,115036848
BEIS,Met Office,2020-12-01,11 SERVICES,BUSINESS GROUP,AEROSPACE & MARINE INTERNATIONAL (UK) LIMITED,449396,34800,GB 856729086
BEIS,Met Office,2020-12-23,04 CONTRACTORS,OPERATIONS,AFBI,450484,50,252677738
BEIS,Met Office,2020-12-10,11 SERVICES,TECHNOLOGY,AKAMAI TECHNOLOGIES LTD,449976,4918.08,745091237
BEIS,Met Office,2020-12-10,11 SERVICES,TECHNOLOGY,AKAMAI TECHNOLOGIES LTD,449976,25819.95,745091237
BEIS,Met Office,2020-12-10,07 EQUIPMENT,OPERATIONS,ALLBATTERIES UK,449979,9576,490225458
BEIS,Met Office,2020-12-10,11 SERVICES,CHIEF FINANCIAL OFFICER,ALLSTAR BUSINESS SOLUTIONS LTD,449954,2015.96,747880191
BEIS,Met Office,2020-12-17,11 SERVICES,CHIEF FINANCIAL OFFICER,ALLSTAR BUSINESS SOLUTIONS LTD,450254,1403.64,747880191
BEIS,Met Office,2020-12-01,11 SERVICES,SCIENCE,ALTO AEROSPACE LIMITED,449413,300,275002528
BEIS,Met Office,2020-12-02,11 SERVICES,TECHNOLOGY,AMAZON WEB SERVICES INC.,10019,1178.76,N/A
BEIS,Met Office,2020-12-02,11 SERVICES,TECHNOLOGY,AMAZON WEB SERVICES INC.,10033,1077.45,N/A
BEIS,Met Office,2020-12-23,11 SERVICES,TECHNOLOGY,AMAZON WEB SERVICES INC.,10051,0.51,N/A
BEIS,Met Office,2020-12-23,11 SERVICES,TECHNOLOGY,AMAZON WEB SERVICES INC.,10054,87008.23,N/A
BEIS,Met Office,2020-12-23,11 SERVICES,TECHNOLOGY,AMAZON WEB SERVICES INC.,10055,11154.57,N/A
BEIS,Met Office,2020-12-02,11 SERVICES,TECHNOLOGY,AMAZON WEB SERVICES INC.,9985,0.35,N/A
BEIS,Met Office,2020-12-02,11 SERVICES,TECHNOLOGY,AMAZON WEB SERVICES INC.,9988,11383.9,N/A
BEIS,Met Office,2020-12-02,11 SERVICES,TECHNOLOGY,AMAZON WEB SERVICES INC.,9992,0.52,N/A
BEIS,Met Office,2020-12-02,11 SERVICES,TECHNOLOGY,AMAZON WEB SERVICES INC.,9997,94930.76,N/A
BEIS,Met Office,2020-12-22,11 SERVICES,CHIEF FINANCIAL OFFICER,ANVIL MOBILE LIMITED,450124,82.6,981686175
BEIS,Met Office,2020-12-22,11 SERVICES,CHIEF FINANCIAL OFFICER,ANVIL MOBILE LIMITED,450124,29.58,981686175
BEIS,Met Office,2020-12-22,11 SERVICES,CHIEF FINANCIAL OFFICER,ANVIL MOBILE LIMITED,450124,98.6,981686175
BEIS,Met Office,2020-12-22,11 SERVICES,CHIEF FINANCIAL OFFICER,ANVIL MOBILE LIMITED,450124,111.3,981686175
BEIS,Met Office,2020-12-22,11 SERVICES,CHIEF FINANCIAL OFFICER,ANVIL MOBILE LIMITED,450124,34.85,981686175
BEIS,Met Office,2020-12-01,11 SERVICES,OPERATIONS,APPLIED SATELLITE TECHNOLOGY SYSTEMS LTD,449389,293.92,720108683
BEIS,Met Office,2020-12-01,11 SERVICES,OPERATIONS,APPLIED SATELLITE TECHNOLOGY SYSTEMS LTD,449399,58.54,720108683
BEIS,Met Office,2020-12-01,11 SERVICES,OPERATIONS,APPLIED SATELLITE TECHNOLOGY SYSTEMS LTD,449401,83.46,720108683
BEIS,Met Office,2020-12-01,12 INTERNATIONAL,OPERATIONS,APPLIED SATELLITE TECHNOLOGY SYSTEMS LTD,449403,32,720108683
BEIS,Met Office,2020-12-23,11 SERVICES,SUPERCOMPUTING,Arup,450364,1174.21,524461265
BEIS,Met Office,2020-12-10,11 SERVICES,OPERATIONS,ASPIRE EUROPE LTD,449982,2500,841124953
BEIS,Met Office,2020-12-02,11 SERVICES,OPERATIONS,"AXYS TECHNOLOGIES, INC",10032,112.58,-
BEIS,Met Office,2020-12-23,06 ACCOMMODATION,CHIEF FINANCIAL OFFICER,AY UK Ltd Client A/C re SMAA Developments Ltd,450372,894.07,314366027
BEIS,Met Office,2020-12-22,11 SERVICES,GOVERNMENT SERVICES,B2B INTERNATIONAL LTD,450353,17400,685937275
BEIS,Met Office,2020-12-01,11 SERVICES,TECHNOLOGY,BAE SYSTEMS APPLIED INTELLIGENCE LIMITED,447869,22110.88,GB641407169
BEIS,Met Office,2020-12-01,11 SERVICES,TECHNOLOGY,BAE SYSTEMS APPLIED INTELLIGENCE LIMITED,447870,13530,GB641407169
BEIS,Met Office,2020-12-01,11 SERVICES,TECHNOLOGY,BAE SYSTEMS APPLIED INTELLIGENCE LIMITED,447873,10820.8,GB641407169
BEIS,Met Office,2020-12-01,11 SERVICES,TECHNOLOGY,BAE SYSTEMS APPLIED INTELLIGENCE LIMITED,447874,12540,GB641407169
BEIS,Met Office,2020-12-01,11 SERVICES,TECHNOLOGY,BAE SYSTEMS APPLIED INTELLIGENCE LIMITED,448013,9197.68,GB641407169
BEIS,Met Office,2020-12-08,11 SERVICES,STRATEGIC INVESTMENT,BAE SYSTEMS APPLIED INTELLIGENCE LIMITED,449119,20636,GB641407169
BEIS,Met Office,2020-12-01,11 SERVICES,TECHNOLOGY,BAE SYSTEMS APPLIED INTELLIGENCE LIMITED,449370,11902.88,GB641407169
BEIS,Met Office,2020-12-15,11 SERVICES,TECHNOLOGY,BAE SYSTEMS APPLIED INTELLIGENCE LIMITED,450078,13200,GB641407169
BEIS,Met Office,2020-12-23,11 SERVICES,TECHNOLOGY,BAE SYSTEMS APPLIED INTELLIGENCE LIMITED,450332,18090.72,GB641407169
BEIS,Met Office,2020-12-23,11 SERVICES,TECHNOLOGY,BAE SYSTEMS APPLIED INTELLIGENCE LIMITED,450333,13316.78,GB641407169
BEIS,Met Office,2020-12-23,11 SERVICES,TECHNOLOGY,BAE SYSTEMS APPLIED INTELLIGENCE LIMITED,450335,10820.8,GB641407169
BEIS,Met Office,2020-12-22,11 SERVICES,TECHNOLOGY,BAE SYSTEMS APPLIED INTELLIGENCE LIMITED,450336,9873.98,GB641407169
BEIS,Met Office,2020-12-23,11 SERVICES,TECHNOLOGY,BAE SYSTEMS APPLIED INTELLIGENCE LIMITED,450337,10212.13,GB641407169
BEIS,Met Office,2020-12-22,11 SERVICES,TECHNOLOGY,BAE SYSTEMS APPLIED INTELLIGENCE LIMITED,450338,9240,GB641407169
BEIS,Met Office,2020-12-23,11 SERVICES,TECHNOLOGY,BAE SYSTEMS APPLIED INTELLIGENCE LIMITED,450339,11880,GB641407169
BEIS,Met Office,2020-12-22,PLANT AND EQUIPMENT,OPERATIONS,BALMORAL COMTEC LTD,450323,22542,886755653
BEIS,Met Office,2020-12-22,11 SERVICES,OPERATIONS,BALMORAL COMTEC LTD,450323,900,886755653
BEIS,Met Office,2020-12-15,06 ACCOMMODATION,CHIEF FINANCIAL OFFICER,BANNER GROUP LIMITED,449948,670.51,GB391085740
BEIS,Met Office,2020-12-10,06 ACCOMMODATION,CHIEF FINANCIAL OFFICER,BANNER GROUP LIMITED,449949,53.72,GB391085740
BEIS,Met Office,2020-12-10,06 ACCOMMODATION,CHIEF FINANCIAL OFFICER,BANNER GROUP LIMITED,449950,26.86,GB391085740
BEIS,Met Office,2020-12-10,06 ACCOMMODATION,CHIEF FINANCIAL OFFICER,BANNER GROUP LIMITED,449951,53.72,GB391085740
BEIS,Met Office,2020-12-10,06 ACCOMMODATION,CHIEF FINANCIAL OFFICER,BANNER GROUP LIMITED,449952,40.12,GB391085740
BEIS,Met Office,2020-12-10,06 ACCOMMODATION,CHIEF FINANCIAL OFFICER,BANNER GROUP LIMITED,449953,21.08,GB391085740
BEIS,Met Office,2020-12-22,06 ACCOMMODATION,CHIEF FINANCIAL OFFICER,BANNER GROUP LIMITED,450241,595.35,GB391085740
BEIS,Met Office,2020-12-22,06 ACCOMMODATION,CHIEF FINANCIAL OFFICER,BANNER GROUP LIMITED,450340,6.92,GB391085740
BEIS,Met Office,2020-12-08,11 SERVICES,CORPORATE,BARRIER NETWORKS LTD,447223,2800,GB135643417
BEIS,Met Office,2020-12-02,11 SERVICES,GOVERNMENT SERVICES,"BASILIO SOZINHO CUBULA SERVI�OS, E.I.",10028,3963.42,N/A
BEIS,Met Office,2020-12-16,11 SERVICES,GOVERNMENT SERVICES,"BASILIO SOZINHO CUBULA SERVI�OS, E.I.",10060,2795.68,N/A
BEIS,Met Office,2020-12-22,06 ACCOMMODATION,CHIEF FINANCIAL OFFICER,Biffa Waste Services Ltd,450378,99.1,537911627
BEIS,Met Office,2020-12-22,11 SERVICES,BUSINESS GROUP,BITPOD LIMITED,447805,450,124 9359 03
BEIS,Met Office,2020-12-08,11 SERVICES,BUSINESS GROUP,BITPOD LIMITED,449834,700,124 9359 03
BEIS,Met Office,2020-12-23,11 SERVICES,CORPORATE,BITPOD LIMITED,450322,2798.53,124 9359 03
BEIS,Met Office,2020-12-22,11 SERVICES,CORPORATE,BITPOD LIMITED,450345,294.93,124 9359 03
BEIS,Met Office,2020-12-15,11 SERVICES,STRATEGIC INVESTMENT,BJSS LIMITED,450011,51262.5,613295452
BEIS,Met Office,2020-12-22,04 CONTRACTORS,STRATEGIC INVESTMENT,BJSS LIMITED,450240,17000,613295452
BEIS,Met Office,2020-12-17,11 SERVICES,OPERATIONS,BOC LTD,449419,14684.18,226556555
BEIS,Met Office,2020-12-17,11 SERVICES,OPERATIONS,BOC LTD,450126,-5,226556555
BEIS,Met Office,2020-12-22,11 SERVICES,OPERATIONS,BOC LTD,450253,-100.02,226556555
BEIS,Met Office,2020-12-22,11 SERVICES,OPERATIONS,BOC LTD,450387,15711.36,226556555
BEIS,Met Office,2020-12-03,08 SOFTWARE LICENCES,TECHNOLOGY,BOXXE,449588,132,734245248
BEIS,Met Office,2020-12-03,08 SOFTWARE LICENCES,TECHNOLOGY,BOXXE,449588,352,734245248
BEIS,Met Office,2020-12-17,11 SERVICES,CHIEF FINANCIAL OFFICER,BT GLOBAL SERVICES,449372,18899.25,245719348
BEIS,Met Office,2020-12-22,11 SERVICES,CHIEF FINANCIAL OFFICER,BT GLOBAL SERVICES,450127,15943.8,245719348
BEIS,Met Office,2020-12-01,11 SERVICES,CORPORATE,BW TRAINING LTD,449578,395,-
BEIS,Met Office,2020-12-15,11 SERVICES,CORPORATE,BW TRAINING LTD,450092,395,-
BEIS,Met Office,2020-12-03,11 SERVICES,OPERATIONS,C K COMMERCIALS LTD,449676,600,456211956
BEIS,Met Office,2020-12-10,06 ACCOMMODATION,CHIEF FINANCIAL OFFICER,CABINET OFFICE - COF LEAD ACCOUNT,448754,901.5,-
BEIS,Met Office,2020-12-10,06 ACCOMMODATION,CHIEF FINANCIAL OFFICER,CABINET OFFICE - COF LEAD ACCOUNT,448755,121.91,-
BEIS,Met Office,2020-12-10,06 ACCOMMODATION,CHIEF FINANCIAL OFFICER,CABINET OFFICE - COF LEAD ACCOUNT,448756,279.66,-
BEIS,Met Office,2020-12-10,06 ACCOMMODATION,CHIEF FINANCIAL OFFICER,CABINET OFFICE - COF LEAD ACCOUNT,448757,549.62,-
BEIS,Met Office,2020-12-10,06 ACCOMMODATION,CHIEF FINANCIAL OFFICER,CABINET OFFICE - COF LEAD ACCOUNT,448904,-279.66,-
BEIS,Met Office,2020-12-10,06 ACCOMMODATION,CHIEF FINANCIAL OFFICER,CABINET OFFICE - COF LEAD ACCOUNT,448904,-121.91,-
BEIS,Met Office,2020-12-10,06 ACCOMMODATION,CHIEF FINANCIAL OFFICER,CABINET OFFICE - COF LEAD ACCOUNT,448904,-901.5,-
BEIS,Met Office,2020-12-10,06 ACCOMMODATION,CHIEF FINANCIAL OFFICER,CABINET OFFICE - COF LEAD ACCOUNT,448904,-549.62,-
BEIS,Met Office,2020-12-10,13 MISCELLANEOUS,CORPORATE,CABINET OFFICE - COF LEAD ACCOUNT,449698,12079.3,-
BEIS,Met Office,2020-12-17,11 SERVICES,GOVERNMENT SERVICES,CACI LTD,450128,18730.05,380609841
BEIS,Met Office,2020-12-17,11 SERVICES,GOVERNMENT SERVICES,CACI LTD,450128,13590,380609841
BEIS,Met Office,2020-12-17,11 SERVICES,GOVERNMENT SERVICES,CACI LTD,450128,3950,380609841
BEIS,Met Office,2020-12-17,11 SERVICES,GOVERNMENT SERVICES,CACI LTD,450128,1286.67,380609841
BEIS,Met Office,2020-12-17,11 SERVICES,GOVERNMENT SERVICES,CACI LTD,450128,426.67,380609841
BEIS,Met Office,2020-12-17,11 SERVICES,GOVERNMENT SERVICES,CACI LTD,450128,42794.95,380609841
BEIS,Met Office,2020-12-17,06 ACCOMMODATION,CHIEF FINANCIAL OFFICER,CALOR GAS LIMITED,450129,355.81,207610984
BEIS,Met Office,2020-12-22,11 SERVICES,GOVERNMENT SERVICES,CAMBRIDGE ECONOMETRICS LTD,450367,49797.8,1916825
BEIS,Met Office,2020-12-22,11 SERVICES,GOVERNMENT SERVICES,CAMBRIDGE ECONOMETRICS LTD,450368,10829.21,1916825
BEIS,Met Office,2020-12-08,07 EQUIPMENT,OPERATIONS,Campbell Scientific Ltd,449423,8445.6,428453933
BEIS,Met Office,2020-12-08,07 EQUIPMENT,OPERATIONS,Campbell Scientific Ltd,449423,872.2,428453933
BEIS,Met Office,2020-12-08,STOCK,OPERATIONS,Campbell Scientific Ltd,449429,0,428453933
BEIS,Met Office,2020-12-08,STOCK,OPERATIONS,Campbell Scientific Ltd,449429,0,428453933
BEIS,Met Office,2020-12-08,STOCK,OPERATIONS,Campbell Scientific Ltd,449429,2533.5,428453933
BEIS,Met Office,2020-12-08,STOCK,OPERATIONS,Campbell Scientific Ltd,449429,13387.5,428453933
BEIS,Met Office,2020-12-08,11 SERVICES,OPERATIONS,Campbell Scientific Ltd,449429,118,428453933
BEIS,Met Office,2020-12-08,STOCK,OPERATIONS,Campbell Scientific Ltd,449674,0,428453933
BEIS,Met Office,2020-12-08,STOCK,OPERATIONS,Campbell Scientific Ltd,449674,0,428453933
BEIS,Met Office,2020-12-08,STOCK,OPERATIONS,Campbell Scientific Ltd,449674,2533.5,428453933
BEIS,Met Office,2020-12-08,STOCK,OPERATIONS,Campbell Scientific Ltd,449674,13387.5,428453933
BEIS,Met Office,2020-12-08,11 SERVICES,OPERATIONS,Campbell Scientific Ltd,449674,49,428453933
BEIS,Met Office,2020-12-22,INFORMATION TECHNOLOGY,STRATEGIC INVESTMENT,Campbell Scientific Ltd,450260,1873.8,428453933
BEIS,Met Office,2020-12-22,INFORMATION TECHNOLOGY,STRATEGIC INVESTMENT,Campbell Scientific Ltd,450260,180,428453933
BEIS,Met Office,2020-12-22,11 SERVICES,STRATEGIC INVESTMENT,Campbell Scientific Ltd,450260,1686.5,428453933
BEIS,Met Office,2020-12-22,10 EQUIPMENT MAINTENANCE,STRATEGIC INVESTMENT,Campbell Scientific Ltd,450388,4850,428453933
BEIS,Met Office,2020-12-22,13 MISCELLANEOUS,CHIEF FINANCIAL OFFICER,CANON UK LTD,450236,2741.42,523797128
BEIS,Met Office,2020-12-22,13 MISCELLANEOUS,CHIEF FINANCIAL OFFICER,CANON UK LTD,450236,53.84,523797128
BEIS,Met Office,2020-12-22,13 MISCELLANEOUS,CHIEF FINANCIAL OFFICER,CANON UK LTD,450236,125.64,523797128
BEIS,Met Office,2020-12-22,13 MISCELLANEOUS,CHIEF FINANCIAL OFFICER,CANON UK LTD,450236,7.64,523797128
BEIS,Met Office,2020-12-22,13 MISCELLANEOUS,CHIEF FINANCIAL OFFICER,CANON UK LTD,450236,15.52,523797128
BEIS,Met Office,2020-12-22,13 MISCELLANEOUS,CHIEF FINANCIAL OFFICER,CANON UK LTD,450236,89.74,523797128
BEIS,Met Office,2020-12-22,13 MISCELLANEOUS,CHIEF FINANCIAL OFFICER,CANON UK LTD,450236,89.74,523797128
BEIS,Met Office,2020-12-22,13 MISCELLANEOUS,CHIEF FINANCIAL OFFICER,CANON UK LTD,450236,89.74,523797128
BEIS,Met Office,2020-12-22,13 MISCELLANEOUS,CHIEF FINANCIAL OFFICER,CANON UK LTD,450236,89.74,523797128
BEIS,Met Office,2020-12-22,13 MISCELLANEOUS,CHIEF FINANCIAL OFFICER,CANON UK LTD,450236,23.16,523797128
BEIS,Met Office,2020-12-17,13 MISCELLANEOUS,CHIEF FINANCIAL OFFICER,CANON UK LTD,450239,11812.72,523797128
BEIS,Met Office,2020-12-23,06 ACCOMMODATION,CHIEF FINANCIAL OFFICER,CANON UK LTD,450255,137.45,523797128
BEIS,Met Office,2020-12-08,13 MISCELLANEOUS,CHIEF FINANCIAL OFFICER,CARDIFF EXECUTIVE CENTRE LTD,449699,4.3,864497378
BEIS,Met Office,2020-12-03,03 STAFF COSTS T&S,OPERATIONS,CARTUS FINANCING LTD,449720,56.75,768489458
BEIS,Met Office,2020-12-08,11 SERVICES,OPERATIONS,CARTUS LTD,449776,518.24,768489458
BEIS,Met Office,2020-12-08,11 SERVICES,OPERATIONS,CARTUS LTD,449779,570,768489458
BEIS,Met Office,2020-12-08,03 STAFF COSTS T&S,OPERATIONS,CARTUS LTD,449780,2427.74,768489458
BEIS,Met Office,2020-12-10,03 STAFF COSTS T&S,OPERATIONS,CARTUS LTD,449781,2702.2,768489458
BEIS,Met Office,2020-12-08,03 STAFF COSTS T&S,OPERATIONS,CARTUS LTD,449782,137,768489458
BEIS,Met Office,2020-12-22,03 STAFF COSTS T&S,OPERATIONS,CARTUS LTD,450357,411,768489458
BEIS,Met Office,2020-12-22,03 STAFF COSTS T&S,OPERATIONS,CARTUS LTD,450358,200,768489458
BEIS,Met Office,2020-12-22,03 STAFF COSTS T&S,OPERATIONS,CARTUS LTD,450359,420,768489458
BEIS,Met Office,2020-12-22,03 STAFF COSTS T&S,OPERATIONS,CARTUS LTD,450360,29.4,768489458
BEIS,Met Office,2020-12-22,03 STAFF COSTS T&S,OPERATIONS,CARTUS LTD,450361,294,768489458
BEIS,Met Office,2020-12-22,03 STAFF COSTS T&S,OPERATIONS,CARTUS LTD,450362,321.3,768489458
BEIS,Met Office,2020-12-22,03 STAFF COSTS T&S,OPERATIONS,CARTUS LTD,450363,715.48,768489458
BEIS,Met Office,2020-12-08,11 SERVICES,OPERATIONS,CATALYST IT,449733,1301.87,978169262
BEIS,Met Office,2020-12-23,11 SERVICES,OPERATIONS,CATALYST IT,450257,1790,978169262
BEIS,Met Office,2020-12-01,06 ACCOMMODATION,CHIEF FINANCIAL OFFICER,CBRE MANAGED SERVICES LTD,449317,22583.91,853936883
BEIS,Met Office,2020-12-03,06 ACCOMMODATION,CHIEF FINANCIAL OFFICER,CBRE MANAGED SERVICES LTD,449599,13885.38,853936883
BEIS,Met Office,2020-12-03,06 ACCOMMODATION,CHIEF FINANCIAL OFFICER,CBRE MANAGED SERVICES LTD,449600,39784.11,853936883
BEIS,Met Office,2020-12-01,11 SERVICES,SCIENCE,"CENTRE FOR THE ENVIRONMENT, FISHERIES AND",449408,18474.3,888 8001 81
BEIS,Met Office,2020-12-08,03 STAFF COSTS T&S,OPERATIONS,CHARLIE'S TRAVEL LTD,449784,1351.58,783848277
BEIS,Met Office,2020-12-08,03 STAFF COSTS T&S,OPERATIONS,CHARLIE'S TRAVEL LTD,449784,616,783848277
BEIS,Met Office,2020-12-08,03 STAFF COSTS T&S,OPERATIONS,CHARLIE'S TRAVEL LTD,449784,40,783848277
BEIS,Met Office,2020-12-23,13 MISCELLANEOUS,GOVERNMENT SERVICES,CLARIVATE ANALYTICS (US) LLC,10057,3690.3,EU826000773
BEIS,Met Office,2020-12-23,13 MISCELLANEOUS,SCIENCE,CLARIVATE ANALYTICS (US) LLC,10057,91870.92,EU826000773
BEIS,Met Office,2020-12-17,08 SOFTWARE LICENCES,TECHNOLOGY,CLEARVISION (CM) LIMITED,450161,13961.21,881364801
BEIS,Met Office,2020-12-17,08 SOFTWARE LICENCES,TECHNOLOGY,CLEARVISION (CM) LIMITED,450161,25281.11,881364801
BEIS,Met Office,2020-12-10,11 SERVICES,TECHNOLOGY,CLOUDREACH EUROPE LIMITED,448526,7110,978187168
BEIS,Met Office,2020-12-10,11 SERVICES,TECHNOLOGY,CLOUDREACH EUROPE LIMITED,449191,4000,978187168
BEIS,Met Office,2020-12-10,11 SERVICES,TECHNOLOGY,CLOUDREACH EUROPE LIMITED,449192,7120.58,978187168
BEIS,Met Office,2020-12-10,11 SERVICES,TECHNOLOGY,CLOUDREACH EUROPE LIMITED,449380,3327.78,978187168
BEIS,Met Office,2020-12-01,11 SERVICES,OPERATIONS,CLOUDREACH EUROPE LIMITED,449395,7300,978187168
BEIS,Met Office,2020-12-03,11 SERVICES,TECHNOLOGY,CLOUDREACH EUROPE LIMITED,449677,177.94,978187168
BEIS,Met Office,2020-12-03,11 SERVICES,TECHNOLOGY,CLOUDREACH EUROPE LIMITED,449677,2495.7,978187168
BEIS,Met Office,2020-12-10,11 SERVICES,TECHNOLOGY,CLOUDREACH EUROPE LIMITED,449686,-3327.78,978187168
BEIS,Met Office,2020-12-17,11 SERVICES,TECHNOLOGY,CLOUDREACH EUROPE LIMITED,450162,7110,978187168
BEIS,Met Office,2020-12-22,11 SERVICES,TECHNOLOGY,CLOUDREACH EUROPE LIMITED,450342,7762.73,978187168
BEIS,Met Office,2020-12-22,11 SERVICES,TECHNOLOGY,CLOUDREACH EUROPE LIMITED,450347,6959.93,978187168
BEIS,Met Office,2020-12-22,11 SERVICES,TECHNOLOGY,CLOUDREACH EUROPE LIMITED,450348,4000,978187168
BEIS,Met Office,2020-12-22,11 SERVICES,OPERATIONS,CLOUDREACH EUROPE LIMITED,450350,7300,978187168
BEIS,Met Office,2020-12-15,05 CONSULTANTS,STRATEGIC INVESTMENT,CMC PARTNERSHIP CONSULTANCY LTD,449732,5621,305803330
BEIS,Met Office,2020-12-15,05 CONSULTANTS,STRATEGIC INVESTMENT,CMC PARTNERSHIP CONSULTANCY LTD,450085,19845,305803330
BEIS,Met Office,2020-12-09,11 SERVICES,OPERATIONS,COLLECTE LOCALISATION SATELLITES (C.L.S.),22048,10919.64,FR95338034390
BEIS,Met Office,2020-12-09,11 SERVICES,OPERATIONS,COLLECTE LOCALISATION SATELLITES (C.L.S.),22051,6449.24,FR95338034390
BEIS,Met Office,2020-12-09,11 SERVICES,OPERATIONS,COLLECTE LOCALISATION SATELLITES (C.L.S.),22052,131.07,FR95338034390
BEIS,Met Office,2020-12-08,10 EQUIPMENT MAINTENANCE,TECHNOLOGY,COMPUTACENTER (UK) LTD,448577,-62225.05,490334648
BEIS,Met Office,2020-12-08,10 EQUIPMENT MAINTENANCE,TECHNOLOGY,COMPUTACENTER (UK) LTD,448654,3707.66,490334648
BEIS,Met Office,2020-12-08,10 EQUIPMENT MAINTENANCE,TECHNOLOGY,COMPUTACENTER (UK) LTD,448655,43340.49,490334648
BEIS,Met Office,2020-12-08,08 SOFTWARE LICENCES,TECHNOLOGY,COMPUTACENTER (UK) LTD,449374,11622,490334648
BEIS,Met Office,2020-12-08,10 EQUIPMENT MAINTENANCE,TECHNOLOGY,COMPUTACENTER (UK) LTD,449819,5657.6,490334648
BEIS,Met Office,2020-12-10,07 EQUIPMENT,TECHNOLOGY,COMPUTACENTER (UK) LTD,450016,3403.6,490334648
BEIS,Met Office,2020-12-17,08 SOFTWARE LICENCES,TECHNOLOGY,COMPUTACENTER (UK) LTD,450163,36764.75,490334648
BEIS,Met Office,2020-12-17,08 SOFTWARE LICENCES,TECHNOLOGY,COMPUTACENTER (UK) LTD,450163,73529.5,490334648
BEIS,Met Office,2020-12-08,11 SERVICES,CHIEF FINANCIAL OFFICER,CONDECO LTD,449688,17505,756256215
BEIS,Met Office,2020-12-23,11 SERVICES,GOVERNMENT SERVICES,CONSULTEC,22205,4379,400005915
BEIS,Met Office,2020-12-15,06 ACCOMMODATION,CHIEF FINANCIAL OFFICER,COUNTRYWIDE GROUNDS MAINTENANCE LTD,450096,320,611731279
BEIS,Met Office,2020-12-17,06 ACCOMMODATION,CHIEF FINANCIAL OFFICER,COUNTRYWIDE GROUNDS MAINTENANCE LTD,450269,80.17,611731279
BEIS,Met Office,2020-12-17,06 ACCOMMODATION,CHIEF FINANCIAL OFFICER,COUNTRYWIDE GROUNDS MAINTENANCE LTD,450269,69.39,611731279
BEIS,Met Office,2020-12-17,06 ACCOMMODATION,CHIEF FINANCIAL OFFICER,COUNTRYWIDE GROUNDS MAINTENANCE LTD,450269,70.71,611731279
BEIS,Met Office,2020-12-17,06 ACCOMMODATION,CHIEF FINANCIAL OFFICER,COUNTRYWIDE GROUNDS MAINTENANCE LTD,450269,68.82,611731279
BEIS,Met Office,2020-12-17,06 ACCOMMODATION,CHIEF FINANCIAL OFFICER,COUNTRYWIDE GROUNDS MAINTENANCE LTD,450269,96.63,611731279
BEIS,Met Office,2020-12-17,06 ACCOMMODATION,CHIEF FINANCIAL OFFICER,COUNTRYWIDE GROUNDS MAINTENANCE LTD,450269,132.17,611731279
BEIS,Met Office,2020-12-17,06 ACCOMMODATION,CHIEF FINANCIAL OFFICER,COUNTRYWIDE GROUNDS MAINTENANCE LTD,450269,18.89,611731279
BEIS,Met Office,2020-12-17,06 ACCOMMODATION,CHIEF FINANCIAL OFFICER,COUNTRYWIDE GROUNDS MAINTENANCE LTD,450269,81.68,611731279
BEIS,Met Office,2020-12-17,06 ACCOMMODATION,CHIEF FINANCIAL OFFICER,COUNTRYWIDE GROUNDS MAINTENANCE LTD,450269,67.31,611731279
BEIS,Met Office,2020-12-17,06 ACCOMMODATION,CHIEF FINANCIAL OFFICER,COUNTRYWIDE GROUNDS MAINTENANCE LTD,450269,80.99,611731279
BEIS,Met Office,2020-12-17,06 ACCOMMODATION,CHIEF FINANCIAL OFFICER,COUNTRYWIDE GROUNDS MAINTENANCE LTD,450269,100.74,611731279
BEIS,Met Office,2020-12-17,06 ACCOMMODATION,CHIEF FINANCIAL OFFICER,COUNTRYWIDE GROUNDS MAINTENANCE LTD,450269,100.74,611731279
BEIS,Met Office,2020-12-17,06 ACCOMMODATION,CHIEF FINANCIAL OFFICER,COUNTRYWIDE GROUNDS MAINTENANCE LTD,450269,131.81,611731279
BEIS,Met Office,2020-12-17,06 ACCOMMODATION,CHIEF FINANCIAL OFFICER,COUNTRYWIDE GROUNDS MAINTENANCE LTD,450269,130,611731279
BEIS,Met Office,2020-12-17,06 ACCOMMODATION,CHIEF FINANCIAL OFFICER,COUNTRYWIDE GROUNDS MAINTENANCE LTD,450269,176.29,611731279
BEIS,Met Office,2020-12-01,11 SERVICES,BUSINESS GROUP,CRANFIELD UNIVERSITY,448471,1500,491358622
BEIS,Met Office,2020-12-17,11 SERVICES,OPERATIONS,DARD CORPORATE ACCOUNT,448983,48,-
BEIS,Met Office,2020-12-08,06 ACCOMMODATION,CHIEF FINANCIAL OFFICER,DARD CORPORATE ACCOUNT,449262,101,-
BEIS,Met Office,2020-12-23,07 EQUIPMENT,SCIENCE,DBM TECHNOLOGIE,22199,72.61,FR704478763469
BEIS,Met Office,2020-12-23,07 EQUIPMENT,SCIENCE,DBM TECHNOLOGIE,22199,872.05,FR704478763469
BEIS,Met Office,2020-12-01,11 SERVICES,GOVERNMENT SERVICES,DBS FINANCE RECEIPTS CTS,449390,13141.66,888805068
BEIS,Met Office,2020-12-17,11 SERVICES,GOVERNMENT SERVICES,DBS FINANCE RECEIPTS CTS,450173,13001.86,888805068
BEIS,Met Office,2020-12-23,03 STAFF COSTS T&S,OPERATIONS,DBS FINANCE RECEIPTS CTS,450356,3212,888805068
BEIS,Met Office,2020-12-09,13 MISCELLANEOUS,CHIEF FINANCIAL OFFICER,DEMSTAR BUSINESS SOLUTIONS LTD,22040,205.87,10156145J
BEIS,Met Office,2020-12-22,11 SERVICES,GOVERNMENT SERVICES,DESIGNAMITE LTD,450265,840,817819989
BEIS,Met Office,2020-12-23,12 INTERNATIONAL,OPERATIONS,Deutscher Wetterdienst,22146,7082.9,-
BEIS,Met Office,2020-12-23,11 SERVICES,GOVERNMENT SERVICES,DH CONSULTANCY,22145,17435.36,BE0890636479
BEIS,Met Office,2020-12-01,11 SERVICES,OPERATIONS,DOT SOFTWARE LTD,449402,2880,701022805
BEIS,Met Office,2020-12-22,08 SOFTWARE LICENCES,TECHNOLOGY,DXC TECHNOLOGY,450325,87570,GB432995915
BEIS,Met Office,2020-12-22,08 SOFTWARE LICENCES,TECHNOLOGY,DXC TECHNOLOGY,450346,29231.6,GB432995915
BEIS,Met Office,2020-12-08,13 MISCELLANEOUS,CHIEF FINANCIAL OFFICER,EAST ANGLIAN WATER COOLER CO,449745,54.7,676668178
BEIS,Met Office,2020-12-23,11 SERVICES,GOVERNMENT SERVICES,ECMWF,22095,709.82,NOTVATREG
BEIS,Met Office,2020-12-23,11 SERVICES,GOVERNMENT SERVICES,ECMWF,22096,319.16,NOTVATREG
BEIS,Met Office,2020-12-23,11 SERVICES,GOVERNMENT SERVICES,ECMWF,22097,11172.94,NOTVATREG
BEIS,Met Office,2020-12-23,11 SERVICES,GOVERNMENT SERVICES,ECMWF,22098,423.16,NOTVATREG
BEIS,Met Office,2020-12-23,11 SERVICES,GOVERNMENT SERVICES,ECMWF,22099,5078.88,NOTVATREG
BEIS,Met Office,2020-12-23,11 SERVICES,GOVERNMENT SERVICES,ECMWF,22100,31688.36,NOTVATREG
BEIS,Met Office,2020-12-23,11 SERVICES,GOVERNMENT SERVICES,ECMWF,22101,31688.36,NOTVATREG
BEIS,Met Office,2020-12-23,11 SERVICES,GOVERNMENT SERVICES,ECMWF,22102,3260.58,NOTVATREG
BEIS,Met Office,2020-12-23,11 SERVICES,GOVERNMENT SERVICES,ECMWF,22103,31688.36,NOTVATREG
BEIS,Met Office,2020-12-23,11 SERVICES,GOVERNMENT SERVICES,ECMWF,22104,4172.29,NOTVATREG
BEIS,Met Office,2020-12-23,11 SERVICES,GOVERNMENT SERVICES,ECMWF,22105,14913.33,NOTVATREG
BEIS,Met Office,2020-12-23,11 SERVICES,GOVERNMENT SERVICES,ECMWF,22106,31688.36,NOTVATREG
BEIS,Met Office,2020-12-23,11 SERVICES,GOVERNMENT SERVICES,ECMWF,22107,31688.36,NOTVATREG
BEIS,Met Office,2020-12-23,11 SERVICES,GOVERNMENT SERVICES,ECMWF,22108,29975.48,NOTVATREG
BEIS,Met Office,2020-12-23,11 SERVICES,GOVERNMENT SERVICES,ECMWF,22109,1577.67,NOTVATREG
BEIS,Met Office,2020-12-23,11 SERVICES,GOVERNMENT SERVICES,ECMWF,22110,3900.27,NOTVATREG
BEIS,Met Office,2020-12-23,11 SERVICES,GOVERNMENT SERVICES,ECMWF,22111,31688.36,NOTVATREG
BEIS,Met Office,2020-12-23,11 SERVICES,GOVERNMENT SERVICES,ECMWF,22112,1074.44,NOTVATREG
BEIS,Met Office,2020-12-23,11 SERVICES,GOVERNMENT SERVICES,ECMWF,22113,31688.36,NOTVATREG
BEIS,Met Office,2020-12-23,11 SERVICES,GOVERNMENT SERVICES,ECMWF,22114,2717.5,NOTVATREG
BEIS,Met Office,2020-12-23,11 SERVICES,GOVERNMENT SERVICES,ECMWF,22115,31688.36,NOTVATREG
BEIS,Met Office,2020-12-23,11 SERVICES,GOVERNMENT SERVICES,ECMWF,22116,5369.53,NOTVATREG
BEIS,Met Office,2020-12-23,11 SERVICES,GOVERNMENT SERVICES,ECMWF,22117,32604.91,NOTVATREG
BEIS,Met Office,2020-12-23,11 SERVICES,GOVERNMENT SERVICES,ECMWF,22118,1357.59,NOTVATREG
BEIS,Met Office,2020-12-23,11 SERVICES,GOVERNMENT SERVICES,ECMWF,22119,2098.25,NOTVATREG
BEIS,Met Office,2020-12-23,11 SERVICES,GOVERNMENT SERVICES,ECMWF,22120,11001.23,NOTVATREG
BEIS,Met Office,2020-12-23,11 SERVICES,GOVERNMENT SERVICES,ECMWF,22121,1260.94,NOTVATREG
BEIS,Met Office,2020-12-23,11 SERVICES,GOVERNMENT SERVICES,ECMWF,22122,411.17,NOTVATREG
BEIS,Met Office,2020-12-23,11 SERVICES,GOVERNMENT SERVICES,ECMWF,22123,31688.36,NOTVATREG
BEIS,Met Office,2020-12-23,11 SERVICES,GOVERNMENT SERVICES,ECMWF,22124,31688.36,NOTVATREG
BEIS,Met Office,2020-12-23,11 SERVICES,GOVERNMENT SERVICES,ECMWF,22125,434.73,NOTVATREG
BEIS,Met Office,2020-12-23,11 SERVICES,GOVERNMENT SERVICES,ECMWF,22126,31688.36,NOTVATREG
BEIS,Met Office,2020-12-23,11 SERVICES,GOVERNMENT SERVICES,ECMWF,22127,1249.98,NOTVATREG
BEIS,Met Office,2020-12-23,11 SERVICES,GOVERNMENT SERVICES,ECMWF,22128,164.89,NOTVATREG
BEIS,Met Office,2020-12-23,11 SERVICES,GOVERNMENT SERVICES,ECMWF,22129,29975.48,NOTVATREG
BEIS,Met Office,2020-12-23,11 SERVICES,GOVERNMENT SERVICES,ECMWF,22130,29975.48,NOTVATREG
BEIS,Met Office,2020-12-23,11 SERVICES,GOVERNMENT SERVICES,ECMWF,22131,1964.9,NOTVATREG
BEIS,Met Office,2020-12-23,11 SERVICES,GOVERNMENT SERVICES,ECMWF,22132,309.8,NOTVATREG
BEIS,Met Office,2020-12-23,11 SERVICES,GOVERNMENT SERVICES,ECMWF,22133,709.82,NOTVATREG
BEIS,Met Office,2020-12-23,11 SERVICES,GOVERNMENT SERVICES,ECMWF,22134,3216.19,NOTVATREG
BEIS,Met Office,2020-12-23,11 SERVICES,GOVERNMENT SERVICES,ECMWF,22135,855.45,NOTVATREG
BEIS,Met Office,2020-12-23,11 SERVICES,GOVERNMENT SERVICES,ECMWF,22136,1146.75,NOTVATREG
BEIS,Met Office,2020-12-23,11 SERVICES,GOVERNMENT SERVICES,ECMWF,22137,7991.9,NOTVATREG
BEIS,Met Office,2020-12-23,11 SERVICES,GOVERNMENT SERVICES,ECMWF,22138,2431.05,NOTVATREG
BEIS,Met Office,2020-12-23,11 SERVICES,GOVERNMENT SERVICES,ECMWF,22139,8594.14,NOTVATREG
BEIS,Met Office,2020-12-23,11 SERVICES,GOVERNMENT SERVICES,ECMWF,22140,1968.82,NOTVATREG
BEIS,Met Office,2020-12-23,11 SERVICES,GOVERNMENT SERVICES,ECMWF,22141,21010.76,NOTVATREG
BEIS,Met Office,2020-12-23,11 SERVICES,GOVERNMENT SERVICES,ECMWF,22143,2381.7,NOTVATREG
BEIS,Met Office,2020-12-23,11 SERVICES,GOVERNMENT SERVICES,ECMWF,22144,2259.57,NOTVATREG
BEIS,Met Office,2020-12-08,06 ACCOMMODATION,CHIEF FINANCIAL OFFICER,Edf Energy Customers Ltd,449771,480,GB523041202
BEIS,Met Office,2020-12-08,06 ACCOMMODATION,CHIEF FINANCIAL OFFICER,Edf Energy Customers Ltd,449772,480,GB523041202
BEIS,Met Office,2020-12-08,06 ACCOMMODATION,CHIEF FINANCIAL OFFICER,EDF ENERGY CUSTOMERS PLC,449560,108023.58,523041202
BEIS,Met Office,2020-12-08,06 ACCOMMODATION,CHIEF FINANCIAL OFFICER,EDF ENERGY CUSTOMERS PLC,449561,-108023.58,523041202
BEIS,Met Office,2020-12-08,06 ACCOMMODATION,CHIEF FINANCIAL OFFICER,EDF ENERGY CUSTOMERS PLC,449562,-128531.77,523041202
BEIS,Met Office,2020-12-08,06 ACCOMMODATION,CHIEF FINANCIAL OFFICER,EDF ENERGY CUSTOMERS PLC,449563,108002.41,523041202
BEIS,Met Office,2020-12-08,06 ACCOMMODATION,CHIEF FINANCIAL OFFICER,EDF ENERGY CUSTOMERS PLC,449702,119113.38,523041202
BEIS,Met Office,2020-12-18,06 ACCOMMODATION,CHIEF FINANCIAL OFFICER,EDF ENERGY CUSTOMERS PLC,449703,93818.2,523041202
BEIS,Met Office,2020-12-08,06 ACCOMMODATION,CHIEF FINANCIAL OFFICER,EDF ENERGY CUSTOMERS PLC,449704,-93818.2,523041202
BEIS,Met Office,2020-12-08,06 ACCOMMODATION,CHIEF FINANCIAL OFFICER,EDF ENERGY CUSTOMERS PLC,449705,93882.46,523041202
BEIS,Met Office,2020-12-08,06 ACCOMMODATION,CHIEF FINANCIAL OFFICER,EDF ENERGY CUSTOMERS PLC,449707,128527.61,523041202
BEIS,Met Office,2020-12-08,06 ACCOMMODATION,CHIEF FINANCIAL OFFICER,EDF ENERGY CUSTOMERS PLC,449791,-119010.7,523041202
BEIS,Met Office,2020-12-17,06 ACCOMMODATION,CHIEF FINANCIAL OFFICER,EDF ENERGY CUSTOMERS PLC,450101,-92000.21,523041202
BEIS,Met Office,2020-12-18,06 ACCOMMODATION,CHIEF FINANCIAL OFFICER,EDF ENERGY CUSTOMERS PLC,450102,-93818.2,523041202
BEIS,Met Office,2020-12-17,06 ACCOMMODATION,CHIEF FINANCIAL OFFICER,EDF ENERGY CUSTOMERS PLC,450103,-104046.04,523041202
BEIS,Met Office,2020-12-17,06 ACCOMMODATION,CHIEF FINANCIAL OFFICER,EDF ENERGY CUSTOMERS PLC,450104,131817.63,523041202
BEIS,Met Office,2020-12-17,06 ACCOMMODATION,CHIEF FINANCIAL OFFICER,EDF ENERGY CUSTOMERS PLC,450105,374383.83,523041202
BEIS,Met Office,2020-12-17,06 ACCOMMODATION,CHIEF FINANCIAL OFFICER,EDF ENERGY CUSTOMERS PLC,450106,109999.44,523041202
BEIS,Met Office,2020-12-23,11 SERVICES,OPERATIONS,ELEKTROINSTITUT MILAN VIDMAR,22082,3451.49,SI11781939
BEIS,Met Office,2020-12-01,03 STAFF COSTS T&S,CHIEF FINANCIAL OFFICER,ENTERPRISE RENT A CAR UK LTD,449552,479.18,215557314
BEIS,Met Office,2020-12-01,03 STAFF COSTS T&S,CHIEF FINANCIAL OFFICER,ENTERPRISE RENT A CAR UK LTD,449559,375.95,215557314
BEIS,Met Office,2020-12-03,03 STAFF COSTS T&S,CHIEF FINANCIAL OFFICER,ENTERPRISE RENT A CAR UK LTD,449693,159.68,215557314
BEIS,Met Office,2020-12-03,03 STAFF COSTS T&S,CHIEF FINANCIAL OFFICER,ENTERPRISE RENT A CAR UK LTD,449783,156.34,215557314
BEIS,Met Office,2020-12-10,03 STAFF COSTS T&S,CHIEF FINANCIAL OFFICER,ENTERPRISE RENT A CAR UK LTD,450018,746.91,215557314
BEIS,Met Office,2020-12-10,03 STAFF COSTS T&S,CHIEF FINANCIAL OFFICER,ENTERPRISE RENT A CAR UK LTD,450019,613.38,215557314
BEIS,Met Office,2020-12-10,11 SERVICES,CORPORATE,EQUINITI ICS LTD,449971,339,915967778
BEIS,Met Office,2020-12-10,11 SERVICES,STRATEGIC INVESTMENT,Esri (Uk) Ltd,449727,26250,787430791
BEIS,Met Office,2020-12-10,11 SERVICES,STRATEGIC INVESTMENT,Esri (Uk) Ltd,449727,2335.5,787430791
BEIS,Met Office,2020-12-23,08 SOFTWARE LICENCES,TECHNOLOGY,ET SPATIAL TECHNIQUES,10017,1200.84,-
BEIS,Met Office,2020-12-02,11 SERVICES,OPERATIONS,"EUTELSAT MADERIA, UNIPESSOAL LDA",22058,2333.18,PT511283733
BEIS,Met Office,2020-12-02,11 SERVICES,OPERATIONS,"EUTELSAT, S.A.",22041,3076.94,-
BEIS,Met Office,2020-12-02,11 SERVICES,OPERATIONS,"EUTELSAT, S.A.",22042,3964.14,-
BEIS,Met Office,2020-12-23,11 SERVICES,OPERATIONS,"EUTELSAT, S.A.",22201,3989.8,-
BEIS,Met Office,2020-12-23,11 SERVICES,OPERATIONS,"EUTELSAT, S.A.",22203,3096.85,-
BEIS,Met Office,2020-12-22,06 ACCOMMODATION,CHIEF FINANCIAL OFFICER,Exeter City Council,440198,140288,142335594
BEIS,Met Office,2020-12-15,11 SERVICES,CHIEF FINANCIAL OFFICER,EXPONENTIAL-E,450012,1749.05,GB798572653
BEIS,Met Office,2020-12-10,03 STAFF COSTS T&S,OPERATIONS,FALKLAND ISLAND COMPANY LTD,449957,700,N/A
BEIS,Met Office,2020-12-10,03 STAFF COSTS T&S,OPERATIONS,FALKLAND ISLAND COMPANY LTD,449959,700,N/A
BEIS,Met Office,2020-12-10,03 STAFF COSTS T&S,OPERATIONS,FALKLAND ISLAND COMPANY LTD,449963,700,N/A
BEIS,Met Office,2020-12-10,03 STAFF COSTS T&S,OPERATIONS,FALKLAND ISLAND COMPANY LTD,449964,700,N/A
BEIS,Met Office,2020-12-22,03 STAFF COSTS T&S,OPERATIONS,FALKLAND ISLAND COMPANY LTD,450389,700,N/A
BEIS,Met Office,2020-12-22,03 STAFF COSTS T&S,OPERATIONS,FALKLAND ISLAND COMPANY LTD,450390,700,N/A
BEIS,Met Office,2020-12-22,03 STAFF COSTS T&S,OPERATIONS,FALKLAND ISLAND COMPANY LTD,450391,700,N/A
BEIS,Met Office,2020-12-22,03 STAFF COSTS T&S,OPERATIONS,FALKLAND ISLAND COMPANY LTD,450392,700,N/A
BEIS,Met Office,2020-12-10,06 ACCOMMODATION,CHIEF FINANCIAL OFFICER,FCO SERVICES,449968,16031,888848729
BEIS,Met Office,2020-12-08,04 CONTRACTORS,TECHNOLOGY,FDM GROUP LIMITED,449795,7500,583540529
BEIS,Met Office,2020-12-08,04 CONTRACTORS,TECHNOLOGY,FDM GROUP LIMITED,449796,5130,583540529
BEIS,Met Office,2020-12-08,04 CONTRACTORS,TECHNOLOGY,FDM GROUP LIMITED,449799,7965,583540529
BEIS,Met Office,2020-12-08,04 CONTRACTORS,TECHNOLOGY,FDM GROUP LIMITED,449808,5670,583540529
BEIS,Met Office,2020-12-10,04 CONTRACTORS,TECHNOLOGY,FDM GROUP LIMITED,449969,5400,583540529
BEIS,Met Office,2020-12-10,04 CONTRACTORS,TECHNOLOGY,FDM GROUP LIMITED,449970,5670,583540529
BEIS,Met Office,2020-12-08,11 SERVICES,TECHNOLOGY,FLYFORM LTD,449728,13930,237333808
BEIS,Met Office,2020-12-08,11 SERVICES,TECHNOLOGY,FLYFORM LTD,449728,15920,237333808
BEIS,Met Office,2020-12-08,11 SERVICES,TECHNOLOGY,FLYFORM LTD,449728,5472.5,237333808
BEIS,Met Office,2020-12-08,11 SERVICES,TECHNOLOGY,FLYFORM LTD,449728,9350,237333808
BEIS,Met Office,2020-12-08,11 SERVICES,CHIEF FINANCIAL OFFICER,FLYFORM LTD,449729,4975,237333808
BEIS,Met Office,2020-12-08,11 SERVICES,CHIEF FINANCIAL OFFICER,FLYFORM LTD,449729,4975,237333808
BEIS,Met Office,2020-12-15,11 SERVICES,TECHNOLOGY,FLYFORM LTD,449730,4975,237333808
BEIS,Met Office,2020-12-15,11 SERVICES,TECHNOLOGY,FLYFORM LTD,449730,4975,237333808
BEIS,Met Office,2020-12-15,11 SERVICES,TECHNOLOGY,FLYFORM LTD,449730,2985,237333808
BEIS,Met Office,2020-12-08,11 SERVICES,TECHNOLOGY,FLYFORM LTD,449731,10945,237333808
BEIS,Met Office,2020-12-10,06 ACCOMMODATION,CHIEF FINANCIAL OFFICER,FMS INTERIOR SERVICES LTD,449978,756,922056940
BEIS,Met Office,2020-12-15,08 SOFTWARE LICENCES,TECHNOLOGY,FORGEROCK LTD,450086,97329.21,988863532
BEIS,Met Office,2020-12-15,06 ACCOMMODATION,CHIEF FINANCIAL OFFICER,FOX GROUNDS MAINTENANCE & LANDSCAPING LTD,450095,305.66,129495383
BEIS,Met Office,2020-12-08,11 SERVICES,CHIEF FINANCIAL OFFICER,FSI (FM SOLUTIONS) LTD,449809,10440,166398173
BEIS,Met Office,2020-12-22,11 SERVICES,CHIEF FINANCIAL OFFICER,GAMMA BUSINESS COMMUNICATIONS LTD,450314,413.1,823820344
BEIS,Met Office,2020-12-15,11 SERVICES,CHIEF FINANCIAL OFFICER,GAMMA TELECOM LTD,450098,94.31,823820344
BEIS,Met Office,2020-12-15,11 SERVICES,CHIEF FINANCIAL OFFICER,GAMMA TELECOM LTD,450098,27272.86,823820344
BEIS,Met Office,2020-12-15,11 SERVICES,OPERATIONS,GAMMA TELECOM LTD,450099,2878.47,823820344
BEIS,Met Office,2020-12-15,11 SERVICES,OPERATIONS,GAMMA TELECOM LTD,450099,481.5,823820344
BEIS,Met Office,2020-12-22,11 SERVICES,CHIEF FINANCIAL OFFICER,GB GROUP PLC,429007,532.89,539716218
BEIS,Met Office,2020-12-22,11 SERVICES,CHIEF FINANCIAL OFFICER,GB GROUP PLC,431537,5000,539716218
BEIS,Met Office,2020-12-22,11 SERVICES,CHIEF FINANCIAL OFFICER,GB GROUP PLC,440350,708.36,539716218
BEIS,Met Office,2020-12-22,11 SERVICES,CHIEF FINANCIAL OFFICER,GB GROUP PLC,449999,207.65,539716218
BEIS,Met Office,2020-12-10,06 ACCOMMODATION,CHIEF FINANCIAL OFFICER,GBC LTD,449956,189.12,859903672
BEIS,Met Office,2020-12-10,06 ACCOMMODATION,CHIEF FINANCIAL OFFICER,GBC LTD,450006,800,859903672
BEIS,Met Office,2020-12-17,06 ACCOMMODATION,CHIEF FINANCIAL OFFICER,GBC LTD,450201,1180,859903672
BEIS,Met Office,2020-12-03,10 EQUIPMENT MAINTENANCE,TECHNOLOGY,GCHQ PUBLIC ACCOUNT - CESG,449683,18246.57,888813658
BEIS,Met Office,2020-12-10,04 CONTRACTORS,TECHNOLOGY,GCS IT RECRUITMENT SPECIALISTS LTD,449966,15750,896156575
BEIS,Met Office,2020-12-01,11 SERVICES,GOVERNMENT SERVICES,GEOSMART INFORMATION LTD,449579,5833,172271519
BEIS,Met Office,2020-12-23,STOCK,OPERATIONS,GH ZEAL LTD,449700,0,648929087
BEIS,Met Office,2020-12-23,STOCK,OPERATIONS,GH ZEAL LTD,449700,4878.3,648929087
BEIS,Met Office,2020-12-23,11 SERVICES,OPERATIONS,GH ZEAL LTD,449700,17.5,648929087
BEIS,Met Office,2020-12-15,11 SERVICES,CHIEF FINANCIAL OFFICER,GIBRALTAR NYNEX COMMUNICATIONS LTD,450009,702,NOVAT
BEIS,Met Office,2020-12-17,11 SERVICES,CORPORATE,GILLIAN BURKE- VOICES,450093,1082.8,-
BEIS,Met Office,2020-12-15,06 ACCOMMODATION,CHIEF FINANCIAL OFFICER,Glasgow City Council,450100,6321.41,653051560
BEIS,Met Office,2020-12-17,11 SERVICES,CORPORATE,GLOBELYNX LTD,442823,21444.85,749464195
BEIS,Met Office,2020-12-08,08 SOFTWARE LICENCES,TECHNOLOGY,GOOGLE IRELAND LTD,449841,37.55,6388047V
BEIS,Met Office,2020-12-10,08 SOFTWARE LICENCES,TECHNOLOGY,GOOGLE IRELAND LTD,449947,36,6388047V
BEIS,Met Office,2020-12-01,06 ACCOMMODATION,CHIEF FINANCIAL OFFICER,GOVERNMENT PROPERTY AGENCY,449422,47638.07,-
BEIS,Met Office,2020-12-23,06 ACCOMMODATION,CHIEF FINANCIAL OFFICER,GOVERNMENT PROPERTY AGENCY,450328,901.5,-
BEIS,Met Office,2020-12-08,11 SERVICES,CORPORATE,HAWK INCENTIVES LTD,449836,7520,238839422
BEIS,Met Office,2020-12-08,11 SERVICES,CORPORATE,HAWK INCENTIVES LTD,449836,376,238839422
BEIS,Met Office,2020-12-17,11 SERVICES,CORPORATE,HAWK INCENTIVES LTD,449837,-150,238839422
BEIS,Met Office,2020-12-17,11 SERVICES,CORPORATE,HAWK INCENTIVES LTD,450202,12315,238839422
BEIS,Met Office,2020-12-17,11 SERVICES,CORPORATE,HAWK INCENTIVES LTD,450202,615.75,238839422
BEIS,Met Office,2020-12-22,11 SERVICES,CORPORATE,HAWK INCENTIVES LTD,450258,28390,238839422
BEIS,Met Office,2020-12-22,11 SERVICES,CORPORATE,HAWK INCENTIVES LTD,450258,1419.5,238839422
BEIS,Met Office,2020-12-01,04 CONTRACTORS,TECHNOLOGY,HAYS SPECIALIST RECRUITMENT LTD,449545,520.95,773695871
BEIS,Met Office,2020-12-01,04 CONTRACTORS,GOVERNMENT SERVICES,HAYS SPECIALIST RECRUITMENT LTD,449546,183.08,773695871
BEIS,Met Office,2020-12-01,04 CONTRACTORS,CORPORATE,HAYS SPECIALIST RECRUITMENT LTD,449547,585.84,773695871
BEIS,Met Office,2020-12-01,04 CONTRACTORS,TECHNOLOGY,HAYS SPECIALIST RECRUITMENT LTD,449548,558.7,773695871
BEIS,Met Office,2020-12-01,04 CONTRACTORS,GOVERNMENT SERVICES,HAYS SPECIALIST RECRUITMENT LTD,449549,366.16,773695871
BEIS,Met Office,2020-12-01,04 CONTRACTORS,CORPORATE,HAYS SPECIALIST RECRUITMENT LTD,449550,658.25,773695871
BEIS,Met Office,2020-12-01,04 CONTRACTORS,CORPORATE,HAYS SPECIALIST RECRUITMENT LTD,449551,634.67,773695871
BEIS,Met Office,2020-12-03,04 CONTRACTORS,CORPORATE,HAYS SPECIALIST RECRUITMENT LTD,449690,549.24,773695871
BEIS,Met Office,2020-12-08,04 CONTRACTORS,CORPORATE,HAYS SPECIALIST RECRUITMENT LTD,449810,658.25,773695871
BEIS,Met Office,2020-12-08,04 CONTRACTORS,TECHNOLOGY,HAYS SPECIALIST RECRUITMENT LTD,449811,558.71,773695871
BEIS,Met Office,2020-12-08,04 CONTRACTORS,CORPORATE,HAYS SPECIALIST RECRUITMENT LTD,449812,634.67,773695871
BEIS,Met Office,2020-12-08,04 CONTRACTORS,CORPORATE,HAYS SPECIALIST RECRUITMENT LTD,449813,915.4,773695871
BEIS,Met Office,2020-12-08,04 CONTRACTORS,TECHNOLOGY,HAYS SPECIALIST RECRUITMENT LTD,449814,566.25,773695871
BEIS,Met Office,2020-12-08,04 CONTRACTORS,CORPORATE,HAYS SPECIALIST RECRUITMENT LTD,449815,915.4,773695871
BEIS,Met Office,2020-12-08,04 CONTRACTORS,GOVERNMENT SERVICES,HAYS SPECIALIST RECRUITMENT LTD,449816,183.08,773695871
BEIS,Met Office,2020-12-08,04 CONTRACTORS,GOVERNMENT SERVICES,HAYS SPECIALIST RECRUITMENT LTD,449817,366.16,773695871
BEIS,Met Office,2020-12-08,04 CONTRACTORS,CORPORATE,HAYS SPECIALIST RECRUITMENT LTD,449818,585.84,773695871
BEIS,Met Office,2020-12-10,04 CONTRACTORS,GOVERNMENT SERVICES,HAYS SPECIALIST RECRUITMENT LTD,449975,183.08,773695871
BEIS,Met Office,2020-12-17,04 CONTRACTORS,CORPORATE,HAYS SPECIALIST RECRUITMENT LTD,450131,585.84,773695871
BEIS,Met Office,2020-12-17,04 CONTRACTORS,TECHNOLOGY,HAYS SPECIALIST RECRUITMENT LTD,450132,558.71,773695871
BEIS,Met Office,2020-12-17,04 CONTRACTORS,GOVERNMENT SERVICES,HAYS SPECIALIST RECRUITMENT LTD,450133,366.16,773695871
BEIS,Met Office,2020-12-17,04 CONTRACTORS,GOVERNMENT SERVICES,HAYS SPECIALIST RECRUITMENT LTD,450134,183.08,773695871
BEIS,Met Office,2020-12-17,04 CONTRACTORS,CORPORATE,HAYS SPECIALIST RECRUITMENT LTD,450135,658.25,773695871
BEIS,Met Office,2020-12-17,04 CONTRACTORS,TECHNOLOGY,HAYS SPECIALIST RECRUITMENT LTD,450136,536.05,773695871
BEIS,Met Office,2020-12-17,04 CONTRACTORS,CORPORATE,HAYS SPECIALIST RECRUITMENT LTD,450137,915.4,773695871
BEIS,Met Office,2020-12-17,04 CONTRACTORS,CORPORATE,HAYS SPECIALIST RECRUITMENT LTD,450242,634.67,773695871
BEIS,Met Office,2020-12-01,06 ACCOMMODATION,CHIEF FINANCIAL OFFICER,HERTS MECHANICAL HANDLING SERVICES LTD,449553,1298,809292220
BEIS,Met Office,2020-12-08,11 SERVICES,SUPERCOMPUTING,HOGAN LOVELLS INTERNATIONAL LLP,449673,14997.4,GB123371543
BEIS,Met Office,2020-12-08,11 SERVICES,SUPERCOMPUTING,HOGAN LOVELLS INTERNATIONAL LLP,449673,94054.16,GB123371543
BEIS,Met Office,2020-12-08,11 SERVICES,SUPERCOMPUTING,HOGAN LOVELLS INTERNATIONAL LLP,449673,86037.4,GB123371543
BEIS,Met Office,2020-12-08,11 SERVICES,SUPERCOMPUTING,HOGAN LOVELLS INTERNATIONAL LLP,449673,50850,GB123371543
BEIS,Met Office,2020-12-08,11 SERVICES,SUPERCOMPUTING,HOGAN LOVELLS INTERNATIONAL LLP,449673,1244.81,GB123371543
BEIS,Met Office,2020-12-08,11 SERVICES,SUPERCOMPUTING,HOGAN LOVELLS INTERNATIONAL LLP,449673,2570.75,GB123371543
BEIS,Met Office,2020-12-08,11 SERVICES,SUPERCOMPUTING,HOGAN LOVELLS INTERNATIONAL LLP,449673,12624.69,GB123371543
BEIS,Met Office,2020-12-08,11 SERVICES,SUPERCOMPUTING,HOGAN LOVELLS INTERNATIONAL LLP,449673,634.49,GB123371543
BEIS,Met Office,2020-12-08,11 SERVICES,SUPERCOMPUTING,HOGAN LOVELLS INTERNATIONAL LLP,449673,95547.31,GB123371543
BEIS,Met Office,2020-12-08,11 SERVICES,SUPERCOMPUTING,HOGAN LOVELLS INTERNATIONAL LLP,449673,43622.57,GB123371543
BEIS,Met Office,2020-12-08,11 SERVICES,SUPERCOMPUTING,HOGAN LOVELLS INTERNATIONAL LLP,449673,34100,GB123371543
BEIS,Met Office,2020-12-08,11 SERVICES,SUPERCOMPUTING,HOGAN LOVELLS INTERNATIONAL LLP,449673,11252.22,GB123371543
BEIS,Met Office,2020-12-18,11 SERVICES,SUPERCOMPUTING,HOGAN LOVELLS INTERNATIONAL LLP,449685,-115190.46,GB123371543
BEIS,Met Office,2020-12-18,11 SERVICES,SUPERCOMPUTING,HOGAN LOVELLS INTERNATIONAL LLP,449709,115190.46,GB123371543
BEIS,Met Office,2020-12-10,11 SERVICES,GOVERNMENT SERVICES,Hr Wallingford Ltd,447472,44012.6,570039752
BEIS,Met Office,2020-12-09,08 SOFTWARE LICENCES,TECHNOLOGY,"IBL SOFTWARE ENGINEERING, SPOL S.R.O.",22043,5050.32,SK2020241883
BEIS,Met Office,2020-12-09,08 SOFTWARE LICENCES,TECHNOLOGY,"IBL SOFTWARE ENGINEERING, SPOL S.R.O.",22047,45308.05,SK2020241883
BEIS,Met Office,2020-12-23,08 SOFTWARE LICENCES,GOVERNMENT SERVICES,"IBL SOFTWARE ENGINEERING, SPOL S.R.O.",22064,17191.19,SK2020241883
BEIS,Met Office,2020-12-23,08 SOFTWARE LICENCES,GOVERNMENT SERVICES,"IBL SOFTWARE ENGINEERING, SPOL S.R.O.",22064,93646.21,SK2020241883
BEIS,Met Office,2020-12-23,11 SERVICES,GOVERNMENT SERVICES,"IBL SOFTWARE ENGINEERING, SPOL S.R.O.",449710,5908.67,SK2020241883
BEIS,Met Office,2020-12-03,08 SOFTWARE LICENCES,TECHNOLOGY,IBM UNITED KINGDOM LTD,449718,12855.7,107328000
BEIS,Met Office,2020-12-01,12 INTERNATIONAL,OPERATIONS,IDEMS INTERNATIONAL COMMUNITY INTEREST CO,449555,30000,-
BEIS,Met Office,2020-12-01,08 SOFTWARE LICENCES,TECHNOLOGY,INCISIVE MEDIA,449580,15000,GB 268762849
BEIS,Met Office,2020-12-10,06 ACCOMMODATION,OPERATIONS,INMARSAT SOLUTIONS (CANADA) INC,449842,1883.08,766144223
BEIS,Met Office,2020-12-03,11 SERVICES,TECHNOLOGY,INNOSIS LIMITED,449754,7177,-
BEIS,Met Office,2020-12-22,07 EQUIPMENT,TECHNOLOGY,INSURGO MEDIA SERVICES LTD,450249,6647.5,979682734
BEIS,Met Office,2020-12-17,11 SERVICES,CHIEF FINANCIAL OFFICER,INTEROUTE COMMUNICATIONS LIMITED,450261,4931.94,832 7071 39
BEIS,Met Office,2020-12-22,FIXTURE & FITTINGS,CHIEF FINANCIAL OFFICER,J & B ELECTRICAL CONTRACTORS LTD,450313,2090.45,705611953
BEIS,Met Office,2020-12-23,06 ACCOMMODATION,CHIEF FINANCIAL OFFICER,JAMES & MARCIA BENJAMIN,450076,520,-
BEIS,Met Office,2020-12-22,11 SERVICES,BUSINESS GROUP,JAMES PERKINS,450349,720,-
BEIS,Met Office,2020-12-01,11 SERVICES,CORPORATE,JCA OCCUPATIONAL PSYCHOLOGISTS LIMITED,449420,4000,655518420
BEIS,Met Office,2020-12-03,11 SERVICES,CORPORATE,JCA OCCUPATIONAL PSYCHOLOGISTS LIMITED,449701,2000,655518420
BEIS,Met Office,2020-12-01,11 SERVICES,BUSINESS GROUP,JCT Ltd,445987,1272,714 3761 44
BEIS,Met Office,2020-12-01,11 SERVICES,BUSINESS GROUP,JCT Ltd,449128,576,714 3761 44
BEIS,Met Office,2020-12-15,11 SERVICES,GOVERNMENT SERVICES,JEREMY BENN ASSOCIATES LIMITED,450097,6744.38,GB 665300941
BEIS,Met Office,2020-12-15,11 SERVICES,GOVERNMENT SERVICES,JEREMY BENN ASSOCIATES LIMITED,450097,2240,GB 665300941
BEIS,Met Office,2020-12-15,11 SERVICES,GOVERNMENT SERVICES,JEREMY BENN ASSOCIATES LIMITED,450097,2240,GB 665300941
BEIS,Met Office,2020-12-01,04 CONTRACTORS,GOVERNMENT SERVICES,JOBSEEKERS RECRUITMENT SERVICES LTD,449540,870.96,130 1297 14
BEIS,Met Office,2020-12-01,04 CONTRACTORS,OPERATIONS,JOBSEEKERS RECRUITMENT SERVICES LTD,449541,259.93,130 1297 14
BEIS,Met Office,2020-12-01,04 CONTRACTORS,CORPORATE,JOBSEEKERS RECRUITMENT SERVICES LTD,449542,663.78,130 1297 14
BEIS,Met Office,2020-12-01,04 CONTRACTORS,GOVERNMENT SERVICES,JOBSEEKERS RECRUITMENT SERVICES LTD,449543,662.3,130 1297 14
BEIS,Met Office,2020-12-03,04 CONTRACTORS,OPERATIONS,JOBSEEKERS RECRUITMENT SERVICES LTD,449738,577.2,130 1297 14
BEIS,Met Office,2020-12-03,04 CONTRACTORS,CORPORATE,JOBSEEKERS RECRUITMENT SERVICES LTD,449739,662.3,130 1297 14
BEIS,Met Office,2020-12-03,04 CONTRACTORS,GOVERNMENT SERVICES,JOBSEEKERS RECRUITMENT SERVICES LTD,449740,662.3,130 1297 14
BEIS,Met Office,2020-12-03,04 CONTRACTORS,GOVERNMENT SERVICES,JOBSEEKERS RECRUITMENT SERVICES LTD,449741,537,130 1297 14
BEIS,Met Office,2020-12-03,04 CONTRACTORS,GOVERNMENT SERVICES,JOBSEEKERS RECRUITMENT SERVICES LTD,449742,848.04,130 1297 14
BEIS,Met Office,2020-12-03,04 CONTRACTORS,GOVERNMENT SERVICES,JOBSEEKERS RECRUITMENT SERVICES LTD,449743,537,130 1297 14
BEIS,Met Office,2020-12-22,04 CONTRACTORS,GOVERNMENT SERVICES,JOBSEEKERS RECRUITMENT SERVICES LTD,450373,554.9,130 1297 14
BEIS,Met Office,2020-12-22,04 CONTRACTORS,GOVERNMENT SERVICES,JOBSEEKERS RECRUITMENT SERVICES LTD,450374,662.3,130 1297 14
BEIS,Met Office,2020-12-22,04 CONTRACTORS,CORPORATE,JOBSEEKERS RECRUITMENT SERVICES LTD,450375,662.3,130 1297 14
BEIS,Met Office,2020-12-22,04 CONTRACTORS,GOVERNMENT SERVICES,JOBSEEKERS RECRUITMENT SERVICES LTD,450380,662.3,130 1297 14
BEIS,Met Office,2020-12-22,04 CONTRACTORS,GOVERNMENT SERVICES,JOBSEEKERS RECRUITMENT SERVICES LTD,450381,528.05,130 1297 14
BEIS,Met Office,2020-12-22,04 CONTRACTORS,GOVERNMENT SERVICES,JOBSEEKERS RECRUITMENT SERVICES LTD,450382,662.3,130 1297 14
BEIS,Met Office,2020-12-22,04 CONTRACTORS,GOVERNMENT SERVICES,JOBSEEKERS RECRUITMENT SERVICES LTD,450383,545.95,130 1297 14
BEIS,Met Office,2020-12-22,04 CONTRACTORS,GOVERNMENT SERVICES,JOBSEEKERS RECRUITMENT SERVICES LTD,450384,848.04,130 1297 14
BEIS,Met Office,2020-12-22,04 CONTRACTORS,CORPORATE,JOBSEEKERS RECRUITMENT SERVICES LTD,450385,662.3,130 1297 14
BEIS,Met Office,2020-12-22,04 CONTRACTORS,GOVERNMENT SERVICES,JOBSEEKERS RECRUITMENT SERVICES LTD,450386,767.82,130 1297 14
BEIS,Met Office,2020-12-23,13 MISCELLANEOUS,GOVERNMENT SERVICES,JOHN WILEY & SONS LTD,450351,13446.04,376766987
BEIS,Met Office,2020-12-23,13 MISCELLANEOUS,SCIENCE,JOHN WILEY & SONS LTD,450351,13446.04,376766987
BEIS,Met Office,2020-12-01,11 SERVICES,STRATEGIC INVESTMENT,KORN FERRY HAY GROUP LTD,449451,25879.69,GB 539135439
BEIS,Met Office,2020-12-03,06 ACCOMMODATION,CHIEF FINANCIAL OFFICER,LAMBERT SMITH HAMPTON GROUP LTD CLIENT A/C,449773,92.5,NOVAT
BEIS,Met Office,2020-12-03,06 ACCOMMODATION,CHIEF FINANCIAL OFFICER,LAMBERT SMITH HAMPTON GROUP LTD CLIENT A/C,449774,111,NOVAT
BEIS,Met Office,2020-12-01,06 ACCOMMODATION,OPERATIONS,LHR BUSINESS SUPPORT CENTRE LTD,449397,25.22,927365404
BEIS,Met Office,2020-12-22,06 ACCOMMODATION,CHIEF FINANCIAL OFFICER,LHR BUSINESS SUPPORT CENTRE LTD,450203,3062.92,927365404
BEIS,Met Office,2020-12-03,08 SOFTWARE LICENCES,CHIEF FINANCIAL OFFICER,LOGICALIS,449672,40362.3,864475392
BEIS,Met Office,2020-12-03,08 SOFTWARE LICENCES,CHIEF FINANCIAL OFFICER,LOGICALIS,449672,15918.99,864475392
BEIS,Met Office,2020-12-23,07 EQUIPMENT,OPERATIONS,M C ENGINEERING SERVICES,445270,1430.34,813172066
BEIS,Met Office,2020-12-02,12 INTERNATIONAL,OPERATIONS,MACITECHSY SOLUTIONS,449324,857.75,-
BEIS,Met Office,2020-12-02,12 INTERNATIONAL,OPERATIONS,MACITECHSY SOLUTIONS,449324,153.5,-
BEIS,Met Office,2020-12-22,11 SERVICES,SCIENCE,MARGARET DAVIES,450376,1000,-
BEIS,Met Office,2020-12-15,11 SERVICES,GOVERNMENT SERVICES,MAWASEM LTD,448865,-780.1,197694731
BEIS,Met Office,2020-12-15,11 SERVICES,CHIEF FINANCIAL OFFICER,MAWASEM LTD,450010,11916.91,197694731
BEIS,Met Office,2020-12-01,11 SERVICES,CORPORATE,MERKLE UK THREE LTD T/A MERKLE PERISCOPIX,446389,8213.33,843316243
BEIS,Met Office,2020-12-10,11 SERVICES,CORPORATE,MERKLE UK THREE LTD T/A MERKLE PERISCOPIX,449998,8315,843316243
BEIS,Met Office,2020-12-23,12 INTERNATIONAL,OPERATIONS,MET SERVICE OF NEW ZEALAND LTD T/A METSERVICE,10031,1441.01,-
BEIS,Met Office,2020-12-09,11 SERVICES,SCIENCE,METEO-FRANCE AGENCE COMPTABLE SEC D2C,22039,9018.43,FR03180060030
BEIS,Met Office,2020-12-01,11 SERVICES,CHIEF FINANCIAL OFFICER,MITIE SECURITY LTD,449556,20526.35,416706654
BEIS,Met Office,2020-12-08,11 SERVICES,CHIEF FINANCIAL OFFICER,MITIE SECURITY LTD,449717,1369.59,416706654
BEIS,Met Office,2020-12-08,11 SERVICES,CHIEF FINANCIAL OFFICER,MITIE SECURITY LTD,449721,664.3,416706654
BEIS,Met Office,2020-12-17,11 SERVICES,CHIEF FINANCIAL OFFICER,MITIE SECURITY LTD,450274,10263.36,416706654
BEIS,Met Office,2020-12-01,11 SERVICES,OPERATIONS,MOMENTUM INCORPORATED,449325,12800,598958541
BEIS,Met Office,2020-12-10,11 SERVICES,OPERATIONS,MOMENTUM INCORPORATED,449973,6400,598958541
BEIS,Met Office,2020-12-22,13 MISCELLANEOUS,CHIEF FINANCIAL OFFICER,MORAY COUNCIL,449684,-81.23,663755506
BEIS,Met Office,2020-12-22,13 MISCELLANEOUS,CHIEF FINANCIAL OFFICER,MORAY COUNCIL,449708,81.23,663755506
BEIS,Met Office,2020-12-22,06 ACCOMMODATION,CHIEF FINANCIAL OFFICER,MORAY COUNCIL,450370,1973.8,663755506
BEIS,Met Office,2020-12-15,11 SERVICES,CHIEF FINANCIAL OFFICER,Morton Fraser LLP,450081,2000,269129336
BEIS,Met Office,2020-12-15,11 SERVICES,CHIEF FINANCIAL OFFICER,Morton Fraser LLP,450081,950,269129336
BEIS,Met Office,2020-12-15,11 SERVICES,CHIEF FINANCIAL OFFICER,Morton Fraser LLP,450081,880,269129336
BEIS,Met Office,2020-12-17,12 INTERNATIONAL,OPERATIONS,MYACORN LTD,450205,8350,-
BEIS,Met Office,2020-12-01,06 ACCOMMODATION,CHIEF FINANCIAL OFFICER,National Oceanography Centre,449394,26649.42,GB 338 5487 64
BEIS,Met Office,2020-12-08,11 SERVICES,OPERATIONS,NEW SIGNATURE UK LTD,448801,5400,187113309
BEIS,Met Office,2020-12-17,11 SERVICES,TECHNOLOGY,NEXUS OPEN SYSTEMS LTD,450262,11650,723221673
BEIS,Met Office,2020-12-01,11 SERVICES,CHIEF FINANCIAL OFFICER,NORSCOTT VENDING SERVICES LTD,449554,27.8,751402071
BEIS,Met Office,2020-12-16,11 SERVICES,OPERATIONS,NSSL GLOBAL LTD,10029,52.53,725151948
BEIS,Met Office,2020-12-16,11 SERVICES,OPERATIONS,NSSL GLOBAL LTD,10030,52.53,725151948
BEIS,Met Office,2020-12-08,06 ACCOMMODATION,CHIEF FINANCIAL OFFICER,OCS Group UK Limited,449744,16128.14,GB238034379
BEIS,Met Office,2020-12-08,06 ACCOMMODATION,CHIEF FINANCIAL OFFICER,OCS Group UK Limited,449744,109250.39,GB238034379
BEIS,Met Office,2020-12-02,13 MISCELLANEOUS,TECHNOLOGY,OGC (OPEN GEOSPATIAL CONSORTIUM) INC.,9990,9107.12,-
BEIS,Met Office,2020-12-01,11 SERVICES,STRATEGIC INVESTMENT,OSBORNE CLARKE LLP,448739,12500,GB138187353
BEIS,Met Office,2020-12-01,11 SERVICES,CORPORATE,OSBORNE CLARKE LLP,449544,1000,GB138187353
BEIS,Met Office,2020-12-08,11 SERVICES,STRATEGIC INVESTMENT,OSBORNE CLARKE LLP,449763,12500,GB138187353
BEIS,Met Office,2020-12-17,07 EQUIPMENT,OPERATIONS,OTT HYDROMET,450227,1590,737592693
BEIS,Met Office,2020-12-17,07 EQUIPMENT,OPERATIONS,OTT HYDROMET,450227,190,737592693
BEIS,Met Office,2020-12-17,07 EQUIPMENT,OPERATIONS,OTT HYDROMET,450227,380,737592693
BEIS,Met Office,2020-12-22,06 ACCOMMODATION,CHIEF FINANCIAL OFFICER,OUR LADY OF BETHLEHEM ABBEY,450226,500,-
BEIS,Met Office,2020-12-03,04 CONTRACTORS,TECHNOLOGY,OUTSOURCE UK LIMITED,449653,12500,576118722
BEIS,Met Office,2020-12-03,04 CONTRACTORS,CHIEF FINANCIAL OFFICER,OUTSOURCE UK LIMITED,449654,8205,576118722
BEIS,Met Office,2020-12-03,04 CONTRACTORS,CORPORATE,OUTSOURCE UK LIMITED,449655,8446.16,576118722
BEIS,Met Office,2020-12-03,04 CONTRACTORS,TECHNOLOGY,OUTSOURCE UK LIMITED,449656,10641.25,576118722
BEIS,Met Office,2020-12-03,04 CONTRACTORS,TECHNOLOGY,OUTSOURCE UK LIMITED,449657,6250.02,576118722
BEIS,Met Office,2020-12-03,04 CONTRACTORS,TECHNOLOGY,OUTSOURCE UK LIMITED,449658,14420.12,576118722
BEIS,Met Office,2020-12-03,04 CONTRACTORS,TECHNOLOGY,OUTSOURCE UK LIMITED,449659,16250,576118722
BEIS,Met Office,2020-12-03,04 CONTRACTORS,OPERATIONS,OUTSOURCE UK LIMITED,449660,11282,576118722
BEIS,Met Office,2020-12-03,04 CONTRACTORS,TECHNOLOGY,OUTSOURCE UK LIMITED,449661,4462.4,576118722
BEIS,Met Office,2020-12-03,04 CONTRACTORS,TECHNOLOGY,OUTSOURCE UK LIMITED,449662,6384.6,576118722
BEIS,Met Office,2020-12-03,04 CONTRACTORS,TECHNOLOGY,OUTSOURCE UK LIMITED,449663,18700,576118722
BEIS,Met Office,2020-12-08,04 CONTRACTORS,CORPORATE,OUTSOURCE UK LIMITED,449664,7419.45,576118722
BEIS,Met Office,2020-12-03,04 CONTRACTORS,STRATEGIC INVESTMENT,OUTSOURCE UK LIMITED,449665,6750,576118722
BEIS,Met Office,2020-12-03,04 CONTRACTORS,TECHNOLOGY,OUTSOURCE UK LIMITED,449666,15000,576118722
BEIS,Met Office,2020-12-03,04 CONTRACTORS,CORPORATE,OUTSOURCE UK LIMITED,449667,8500,576118722
BEIS,Met Office,2020-12-03,04 CONTRACTORS,CORPORATE,OUTSOURCE UK LIMITED,449668,12750,576118722
BEIS,Met Office,2020-12-03,04 CONTRACTORS,TECHNOLOGY,OUTSOURCE UK LIMITED,449669,10051.37,576118722
BEIS,Met Office,2020-12-03,04 CONTRACTORS,TECHNOLOGY,OUTSOURCE UK LIMITED,449670,7957,576118722
BEIS,Met Office,2020-12-03,04 CONTRACTORS,TECHNOLOGY,OUTSOURCE UK LIMITED,449671,11846.1,576118722
BEIS,Met Office,2020-12-03,04 CONTRACTORS,TECHNOLOGY,OUTSOURCE UK LIMITED,449734,12948.75,576118722
BEIS,Met Office,2020-12-03,04 CONTRACTORS,STRATEGIC INVESTMENT,OUTSOURCE UK LIMITED,449735,5625,576118722
BEIS,Met Office,2020-12-03,04 CONTRACTORS,TECHNOLOGY,OUTSOURCE UK LIMITED,449736,10932.88,576118722
BEIS,Met Office,2020-12-08,04 CONTRACTORS,CHIEF FINANCIAL OFFICER,OUTSOURCE UK LIMITED,449797,8018.47,576118722
BEIS,Met Office,2020-12-08,04 CONTRACTORS,TECHNOLOGY,OUTSOURCE UK LIMITED,449798,7015.32,576118722
BEIS,Met Office,2020-12-08,04 CONTRACTORS,STRATEGIC INVESTMENT,OUTSOURCE UK LIMITED,449800,12365.5,576118722
BEIS,Met Office,2020-12-08,04 CONTRACTORS,STRATEGIC INVESTMENT,OUTSOURCE UK LIMITED,449802,9435.8,576118722
BEIS,Met Office,2020-12-08,04 CONTRACTORS,TECHNOLOGY,OUTSOURCE UK LIMITED,449803,11250,576118722
BEIS,Met Office,2020-12-08,04 CONTRACTORS,CHIEF FINANCIAL OFFICER,OUTSOURCE UK LIMITED,449804,8492.4,576118722
BEIS,Met Office,2020-12-08,04 CONTRACTORS,TECHNOLOGY,OUTSOURCE UK LIMITED,449805,13107.7,576118722
BEIS,Met Office,2020-12-08,04 CONTRACTORS,TECHNOLOGY,OUTSOURCE UK LIMITED,449806,2500,576118722
BEIS,Met Office,2020-12-01,13 MISCELLANEOUS,CHIEF FINANCIAL OFFICER,POSTURITE (UK) LTD,449409,654.1,583565114
BEIS,Met Office,2020-12-01,13 MISCELLANEOUS,CHIEF FINANCIAL OFFICER,POSTURITE (UK) LTD,449444,139.49,583565114
BEIS,Met Office,2020-12-01,13 MISCELLANEOUS,CHIEF FINANCIAL OFFICER,POSTURITE (UK) LTD,449446,50,583565114
BEIS,Met Office,2020-12-15,13 MISCELLANEOUS,CHIEF FINANCIAL OFFICER,POSTURITE (UK) LTD,450007,169.85,583565114
BEIS,Met Office,2020-12-17,13 MISCELLANEOUS,CHIEF FINANCIAL OFFICER,POSTURITE (UK) LTD,450206,206.96,583565114
BEIS,Met Office,2020-12-22,13 MISCELLANEOUS,CHIEF FINANCIAL OFFICER,POSTURITE (UK) LTD,450270,30.38,583565114
BEIS,Met Office,2020-12-22,13 MISCELLANEOUS,CHIEF FINANCIAL OFFICER,POSTURITE (UK) LTD,450271,15,583565114
BEIS,Met Office,2020-12-22,13 MISCELLANEOUS,CHIEF FINANCIAL OFFICER,POSTURITE (UK) LTD,450272,489.12,583565114
BEIS,Met Office,2020-12-08,08 SOFTWARE LICENCES,TECHNOLOGY,PRESENTATION CARTOGRAPHY LTD,449382,2250,-
BEIS,Met Office,2020-12-10,11 SERVICES,CORPORATE,PRESS ASSOCIATION LTD,448346,6134.12,590629516
BEIS,Met Office,2020-12-09,08 SOFTWARE LICENCES,OPERATIONS,PTC Inc,10038,1124.15,-
BEIS,Met Office,2020-12-16,08 SOFTWARE LICENCES,OPERATIONS,PTC Inc,10047,8053.34,-
BEIS,Met Office,2020-12-16,08 SOFTWARE LICENCES,SCIENCE,PTC Inc,10047,3372.45,-
BEIS,Met Office,2020-12-01,04 CONTRACTORS,CORPORATE,QUALSERV CONSULTING LTD,449584,8964.4,719067718
BEIS,Met Office,2020-12-01,04 CONTRACTORS,TECHNOLOGY,QUALSERV CONSULTING LTD,449585,12117.03,719067718
BEIS,Met Office,2020-12-01,04 CONTRACTORS,STRATEGIC INVESTMENT,QUALSERV CONSULTING LTD,449586,8750,719067718
BEIS,Met Office,2020-12-01,04 CONTRACTORS,STRATEGIC INVESTMENT,QUALSERV CONSULTING LTD,449587,8619.75,719067718
BEIS,Met Office,2020-12-03,04 CONTRACTORS,CHIEF FINANCIAL OFFICER,QUALSERV CONSULTING LTD,449650,9747.92,719067718
BEIS,Met Office,2020-12-03,04 CONTRACTORS,GOVERNMENT SERVICES,QUALSERV CONSULTING LTD,449651,11250,719067718
BEIS,Met Office,2020-12-03,04 CONTRACTORS,OPERATIONS,QUALSERV CONSULTING LTD,449652,7860,719067718
BEIS,Met Office,2020-12-03,04 CONTRACTORS,OPERATIONS,QUALSERV CONSULTING LTD,449691,6500,719067718
BEIS,Met Office,2020-12-03,04 CONTRACTORS,STRATEGIC INVESTMENT,QUALSERV CONSULTING LTD,449692,7000,719067718
BEIS,Met Office,2020-12-03,04 CONTRACTORS,TECHNOLOGY,QUALSERV CONSULTING LTD,449746,14524.5,719067718
BEIS,Met Office,2020-12-03,04 CONTRACTORS,TECHNOLOGY,QUALSERV CONSULTING LTD,449748,11315.7,719067718
BEIS,Met Office,2020-12-03,04 CONTRACTORS,TECHNOLOGY,QUALSERV CONSULTING LTD,449749,8731.5,719067718
BEIS,Met Office,2020-12-03,04 CONTRACTORS,TECHNOLOGY,QUALSERV CONSULTING LTD,449750,14787.5,719067718
BEIS,Met Office,2020-12-03,04 CONTRACTORS,TECHNOLOGY,QUALSERV CONSULTING LTD,449751,8048.64,719067718
BEIS,Met Office,2020-12-08,04 CONTRACTORS,STRATEGIC INVESTMENT,QUALSERV CONSULTING LTD,449820,11205.5,719067718
BEIS,Met Office,2020-12-17,04 CONTRACTORS,STRATEGIC INVESTMENT,QUALSERV CONSULTING LTD,450207,11205.5,719067718
BEIS,Met Office,2020-12-01,04 CONTRACTORS,CORPORATE,QUINTON DAVIES LIMITED,449371,15730,291532892
BEIS,Met Office,2020-12-03,04 CONTRACTORS,CORPORATE,QUINTON DAVIES LIMITED,449649,15730,291532892
BEIS,Met Office,2020-12-03,11 SERVICES,OPERATIONS,RAISE TELECOMS LTD,449648,9977.5,166016521
BEIS,Met Office,2020-12-10,FIXTURE & FITTINGS,CHIEF FINANCIAL OFFICER,RAISE TELECOMS LTD,449984,689.65,166016521
BEIS,Met Office,2020-12-23,STOCK,OPERATIONS,RAYMETRICS S.A. (LUXEMBOURG ACCOUNT),22065,0,EL999641589
BEIS,Met Office,2020-12-23,STOCK,OPERATIONS,RAYMETRICS S.A. (LUXEMBOURG ACCOUNT),22065,0,EL999641589
BEIS,Met Office,2020-12-23,STOCK,OPERATIONS,RAYMETRICS S.A. (LUXEMBOURG ACCOUNT),22065,5461.33,EL999641589
BEIS,Met Office,2020-12-23,STOCK,OPERATIONS,RAYMETRICS S.A. (LUXEMBOURG ACCOUNT),22065,666.02,EL999641589
BEIS,Met Office,2020-12-09,12 INTERNATIONAL,OPERATIONS,REDACTED PERSONAL DATA,10037,2623.02,-
BEIS,Met Office,2020-12-03,11 SERVICES,CORPORATE,REDACTED PERSONAL DATA,449379,4250,143043312
BEIS,Met Office,2020-12-03,11 SERVICES,CHIEF FINANCIAL OFFICER,REDACTED PERSONAL DATA,449678,2130.7,729159704
BEIS,Met Office,2020-12-08,06 ACCOMMODATION,CHIEF FINANCIAL OFFICER,REDACTED PERSONAL DATA,449723,200,N/A
BEIS,Met Office,2020-12-08,06 ACCOMMODATION,CHIEF FINANCIAL OFFICER,REDACTED PERSONAL DATA,449724,200,N/A
BEIS,Met Office,2020-12-08,11 SERVICES,CORPORATE,REDACTED PERSONAL DATA,449752,1309,143043312
BEIS,Met Office,2020-12-08,06 ACCOMMODATION,CHIEF FINANCIAL OFFICER,REDACTED PERSONAL DATA,449793,5244,-
BEIS,Met Office,2020-12-10,06 ACCOMMODATION,CHIEF FINANCIAL OFFICER,REDACTED PERSONAL DATA,449832,940,426523462
BEIS,Met Office,2020-12-10,06 ACCOMMODATION,CHIEF FINANCIAL OFFICER,REDACTED PERSONAL DATA,450001,300,-
BEIS,Met Office,2020-12-15,06 ACCOMMODATION,CHIEF FINANCIAL OFFICER,REDACTED PERSONAL DATA,450020,80,166458184
BEIS,Met Office,2020-12-15,06 ACCOMMODATION,CHIEF FINANCIAL OFFICER,REDACTED PERSONAL DATA,450021,2100,750148646
BEIS,Met Office,2020-12-15,06 ACCOMMODATION,CHIEF FINANCIAL OFFICER,REDACTED PERSONAL DATA,450077,59.75,655585009
BEIS,Met Office,2020-12-15,06 ACCOMMODATION,CHIEF FINANCIAL OFFICER,REDACTED PERSONAL DATA,450077,90.75,655585009
BEIS,Met Office,2020-12-15,06 ACCOMMODATION,CHIEF FINANCIAL OFFICER,REDACTED PERSONAL DATA,450077,31.75,655585009
BEIS,Met Office,2020-12-15,06 ACCOMMODATION,CHIEF FINANCIAL OFFICER,REDACTED PERSONAL DATA,450077,53.75,655585009
BEIS,Met Office,2020-12-15,06 ACCOMMODATION,CHIEF FINANCIAL OFFICER,REDACTED PERSONAL DATA,450077,65.75,655585009
BEIS,Met Office,2020-12-15,06 ACCOMMODATION,CHIEF FINANCIAL OFFICER,REDACTED PERSONAL DATA,450077,54.75,655585009
BEIS,Met Office,2020-12-15,06 ACCOMMODATION,CHIEF FINANCIAL OFFICER,REDACTED PERSONAL DATA,450077,233.75,655585009
BEIS,Met Office,2020-12-15,06 ACCOMMODATION,CHIEF FINANCIAL OFFICER,REDACTED PERSONAL DATA,450077,41.75,655585009
BEIS,Met Office,2020-12-22,06 ACCOMMODATION,CHIEF FINANCIAL OFFICER,REDACTED PERSONAL DATA,450204,613.36,-
BEIS,Met Office,2020-12-22,06 ACCOMMODATION,CHIEF FINANCIAL OFFICER,REDACTED PERSONAL DATA,450225,672.22,-
BEIS,Met Office,2020-12-23,04 CONTRACTORS,OPERATIONS,REDACTED PERSONAL DATA,450429,1893.34,267253251
BEIS,Met Office,2020-12-17,04 CONTRACTORS,STRATEGIC INVESTMENT,REED,450002,8000,835515525
BEIS,Met Office,2020-12-17,04 CONTRACTORS,TECHNOLOGY,REED,450002,10281.6,835515525
BEIS,Met Office,2020-12-17,04 CONTRACTORS,TECHNOLOGY,REED,450002,11467.5,835515525
BEIS,Met Office,2020-12-17,04 CONTRACTORS,TECHNOLOGY,REED,450002,9186,835515525
BEIS,Met Office,2020-12-17,04 CONTRACTORS,TECHNOLOGY,REED,450002,9474,835515525
BEIS,Met Office,2020-12-16,11 SERVICES,GOVERNMENT SERVICES,REGENTS OF THE UNIVERSITY OF COLORADO,10059,37538.38,-
BEIS,Met Office,2020-12-22,06 ACCOMMODATION,CHIEF FINANCIAL OFFICER,RIVER RIDGE,450208,108.98,176286083
BEIS,Met Office,2020-12-10,11 SERVICES,GOVERNMENT SERVICES,ROWE IT LTD,449958,13903.75,924964394
BEIS,Met Office,2020-12-23,11 SERVICES,GOVERNMENT SERVICES,ROWE IT LTD,449960,6292.5,924964394
BEIS,Met Office,2020-12-10,11 SERVICES,OPERATIONS,ROWE IT LTD,449961,27663.25,924964394
BEIS,Met Office,2020-12-10,11 SERVICES,OPERATIONS,ROWE IT LTD,449961,27663,924964394
BEIS,Met Office,2020-12-15,11 SERVICES,STRATEGIC INVESTMENT,ROWE IT LTD,449962,89062.5,924964394
BEIS,Met Office,2020-12-10,11 SERVICES,OPERATIONS,ROWE IT LTD,449993,4760,924964394
BEIS,Met Office,2020-12-15,11 SERVICES,OPERATIONS,ROWE IT LTD,449995,13650,924964394
BEIS,Met Office,2020-12-10,11 SERVICES,OPERATIONS,ROWE IT LTD,449996,35507.5,924964394
BEIS,Met Office,2020-12-15,04 CONTRACTORS,STRATEGIC INVESTMENT,ROWE IT LTD,449997,15750,924964394
BEIS,Met Office,2020-12-15,06 ACCOMMODATION,CHIEF FINANCIAL OFFICER,ROYAL AIR FORCE SHAWBURY,450122,11563.03,-
BEIS,Met Office,2020-12-22,13 MISCELLANEOUS,OPERATIONS,Royal Meteorological Society,450366,23348.43,-
BEIS,Met Office,2020-12-01,06 ACCOMMODATION,GOVERNMENT SERVICES,Royal National Lifeboat Institution,449393,24000,-
BEIS,Met Office,2020-12-01,06 ACCOMMODATION,GOVERNMENT SERVICES,Royal National Lifeboat Institution,449393,360,-
BEIS,Met Office,2020-12-03,08 SOFTWARE LICENCES,GOVERNMENT SERVICES,RUNTIME COLLECTIVE LTD T/A BRANDWATCH,449598,11980,754750710
BEIS,Met Office,2020-12-15,FIXTURE & FITTINGS,CHIEF FINANCIAL OFFICER,S SMITH & SONS CARPETS LTD,450017,9528.75,456159529
BEIS,Met Office,2020-12-22,06 ACCOMMODATION,CHIEF FINANCIAL OFFICER,SAFESTORE LTD,450355,2681.21,722887607
BEIS,Met Office,2020-12-15,11 SERVICES,GOVERNMENT SERVICES,SCIENCE & TECHNOLOGY FACILITIES COUNCIL,449977,119127,618367325
BEIS,Met Office,2020-12-08,13 MISCELLANEOUS,CHIEF FINANCIAL OFFICER,SELECTA UK LTD,449697,130,581705924
BEIS,Met Office,2020-12-08,06 ACCOMMODATION,CHIEF FINANCIAL OFFICER,SHARED ACCESS LTD,449695,6906.3,920672730
BEIS,Met Office,2020-12-22,06 ACCOMMODATION,CHIEF FINANCIAL OFFICER,SIMEC LOCHABER HYDROPOWER 2 LTD,450224,60,336173953
BEIS,Met Office,2020-12-01,11 SERVICES,CORPORATE,SOCIAL & LOCAL,449347,6134.5,126 9600 12
BEIS,Met Office,2020-12-22,11 SERVICES,GOVERNMENT SERVICES,SOCIAL SENSING LTD,450264,2758,-
BEIS,Met Office,2020-12-22,11 SERVICES,CORPORATE,SODEXO MOT SOL UK  LTD (CHILDCARE RECEIPTS),450365,438.71,733644335
BEIS,Met Office,2020-12-08,11 SERVICES,STRATEGIC INVESTMENT,SOFTCAT LTD,449711,673.24,491848503
BEIS,Met Office,2020-12-03,11 SERVICES,STRATEGIC INVESTMENT,SOFTCAT LTD,449726,168.31,491848503
BEIS,Met Office,2020-12-22,08 SOFTWARE LICENCES,TECHNOLOGY,SOFTWAREONE,450354,40820.15,GB 942 5301 43
BEIS,Met Office,2020-12-08,11 SERVICES,OPERATIONS,SOFTWIRE TECHNOLOGY LIMITED,449807,2520,752 1253 57
BEIS,Met Office,2020-12-17,04 CONTRACTORS,STRATEGIC INVESTMENT,SOLOS CONSULTANTS LTD,450138,13650,812035476
BEIS,Met Office,2020-12-17,04 CONTRACTORS,GOVERNMENT SERVICES,SOLOS CONSULTANTS LTD,450139,10675,812035476
BEIS,Met Office,2020-12-17,04 CONTRACTORS,TECHNOLOGY,SOLOS CONSULTANTS LTD,450140,11998.8,812035476
BEIS,Met Office,2020-12-17,04 CONTRACTORS,CORPORATE,SOLOS CONSULTANTS LTD,450141,11235.5,812035476
BEIS,Met Office,2020-12-17,04 CONTRACTORS,TECHNOLOGY,SOLOS CONSULTANTS LTD,450142,8250,812035476
BEIS,Met Office,2020-12-17,04 CONTRACTORS,OPERATIONS,SOLOS CONSULTANTS LTD,450143,17406.6,812035476
BEIS,Met Office,2020-12-17,04 CONTRACTORS,TECHNOLOGY,SOLOS CONSULTANTS LTD,450144,14998.5,812035476
BEIS,Met Office,2020-12-17,04 CONTRACTORS,TECHNOLOGY,SOLOS CONSULTANTS LTD,450145,12084,812035476
BEIS,Met Office,2020-12-17,04 CONTRACTORS,CHIEF FINANCIAL OFFICER,SOLOS CONSULTANTS LTD,450146,11616.54,812035476
BEIS,Met Office,2020-12-17,04 CONTRACTORS,CHIEF FINANCIAL OFFICER,SOLOS CONSULTANTS LTD,450147,13949.6,812035476
BEIS,Met Office,2020-12-17,04 CONTRACTORS,OPERATIONS,SOLOS CONSULTANTS LTD,450148,11624.75,812035476
BEIS,Met Office,2020-12-17,04 CONTRACTORS,TECHNOLOGY,SOLOS CONSULTANTS LTD,450149,16250,812035476
BEIS,Met Office,2020-12-17,04 CONTRACTORS,TECHNOLOGY,SOLOS CONSULTANTS LTD,450150,11156.5,812035476
BEIS,Met Office,2020-12-17,04 CONTRACTORS,STRATEGIC INVESTMENT,SOLOS CONSULTANTS LTD,450151,16380,812035476
BEIS,Met Office,2020-12-17,04 CONTRACTORS,STRATEGIC INVESTMENT,SOLOS CONSULTANTS LTD,450152,17357.5,812035476
BEIS,Met Office,2020-12-17,04 CONTRACTORS,TECHNOLOGY,SOLOS CONSULTANTS LTD,450153,10250,812035476
BEIS,Met Office,2020-12-17,04 CONTRACTORS,CORPORATE,SOLOS CONSULTANTS LTD,450154,9797,812035476
BEIS,Met Office,2020-12-17,04 CONTRACTORS,CHIEF FINANCIAL OFFICER,SOLOS CONSULTANTS LTD,450155,7942,812035476
BEIS,Met Office,2020-12-17,04 CONTRACTORS,TECHNOLOGY,SOLOS CONSULTANTS LTD,450156,23400,812035476
BEIS,Met Office,2020-12-17,04 CONTRACTORS,TECHNOLOGY,SOLOS CONSULTANTS LTD,450157,17634.5,812035476
BEIS,Met Office,2020-12-17,04 CONTRACTORS,GOVERNMENT SERVICES,SOLOS CONSULTANTS LTD,450158,11536.8,812035476
BEIS,Met Office,2020-12-17,04 CONTRACTORS,GOVERNMENT SERVICES,SOLOS CONSULTANTS LTD,450159,9858.5,812035476
BEIS,Met Office,2020-12-17,04 CONTRACTORS,TECHNOLOGY,SOLOS CONSULTANTS LTD,450160,14421,812035476
BEIS,Met Office,2020-12-17,04 CONTRACTORS,TECHNOLOGY,SOLOS CONSULTANTS LTD,450209,16302,812035476
BEIS,Met Office,2020-12-17,04 CONTRACTORS,TECHNOLOGY,SOLOS CONSULTANTS LTD,450210,8025.6,812035476
BEIS,Met Office,2020-12-17,04 CONTRACTORS,TECHNOLOGY,SOLOS CONSULTANTS LTD,450211,10400,812035476
BEIS,Met Office,2020-12-17,04 CONTRACTORS,TECHNOLOGY,SOLOS CONSULTANTS LTD,450212,18810,812035476
BEIS,Met Office,2020-12-17,04 CONTRACTORS,CORPORATE,SOLOS CONSULTANTS LTD,450213,12424.5,812035476
BEIS,Met Office,2020-12-17,04 CONTRACTORS,BUSINESS GROUP,SOLOS CONSULTANTS LTD,450214,11156.5,812035476
BEIS,Met Office,2020-12-17,04 CONTRACTORS,TECHNOLOGY,SOLOS CONSULTANTS LTD,450215,16900,812035476
BEIS,Met Office,2020-12-17,04 CONTRACTORS,STRATEGIC INVESTMENT,SOLOS CONSULTANTS LTD,450216,10786.08,812035476
BEIS,Met Office,2020-12-17,04 CONTRACTORS,STRATEGIC INVESTMENT,SOLOS CONSULTANTS LTD,450217,9632.48,812035476
BEIS,Met Office,2020-12-17,04 CONTRACTORS,STRATEGIC INVESTMENT,SOLOS CONSULTANTS LTD,450218,11235.5,812035476
BEIS,Met Office,2020-12-17,04 CONTRACTORS,TECHNOLOGY,SOLOS CONSULTANTS LTD,450219,7493.85,812035476
BEIS,Met Office,2020-12-17,04 CONTRACTORS,STRATEGIC INVESTMENT,SOLOS CONSULTANTS LTD,450237,15028,812035476
BEIS,Met Office,2020-12-17,04 CONTRACTORS,STRATEGIC INVESTMENT,SOLOS CONSULTANTS LTD,450237,7072,812035476
BEIS,Met Office,2020-12-17,08 SOFTWARE LICENCES,GOVERNMENT SERVICES,SOUTRON LIMITED,450220,13159,828299582
BEIS,Met Office,2020-12-15,11 SERVICES,BUSINESS GROUP,SPOKE (INTERACTIVE) LTD,450088,700,840156451
BEIS,Met Office,2020-12-09,13 MISCELLANEOUS,GOVERNMENT SERVICES,SPRINGER CUSTOMER SERVICE CENTER GMBH,22049,18413.63,209719094
BEIS,Met Office,2020-12-09,13 MISCELLANEOUS,SCIENCE,SPRINGER CUSTOMER SERVICE CENTER GMBH,22049,18413.63,209719094
BEIS,Met Office,2020-12-15,06 ACCOMMODATION,CHIEF FINANCIAL OFFICER,Sruc,450079,1120,GB435882817
BEIS,Met Office,2020-12-15,06 ACCOMMODATION,CHIEF FINANCIAL OFFICER,Sruc,450079,300,GB435882817
BEIS,Met Office,2020-12-03,11 SERVICES,TECHNOLOGY,SSE CONTRACTING LTD,449589,10137.45,570118464
BEIS,Met Office,2020-12-08,11 SERVICES,CHIEF FINANCIAL OFFICER,ST JOHN AMBULANCE,449679,225,564553916
BEIS,Met Office,2020-12-01,06 ACCOMMODATION,CHIEF FINANCIAL OFFICER,ST MODWEN VENTURES LTD,449438,862.5,975081008
BEIS,Met Office,2020-12-08,06 ACCOMMODATION,CHIEF FINANCIAL OFFICER,ST MODWEN VENTURES LTD,449753,41.29,975081008
BEIS,Met Office,2020-12-22,11 SERVICES,CHIEF FINANCIAL OFFICER,STARK SOFTWARE INTERNATIONAL LTD,450221,4050.4,644372829
BEIS,Met Office,2020-12-08,11 SERVICES,CHIEF FINANCIAL OFFICER,SURE SOUTH ATLANTIC LTD,449712,628.03,NOVATREG
BEIS,Met Office,2020-12-15,11 SERVICES,CHIEF FINANCIAL OFFICER,SURE SOUTH ATLANTIC LTD,450013,4743,-
BEIS,Met Office,2020-12-15,11 SERVICES,CHIEF FINANCIAL OFFICER,SURE SOUTH ATLANTIC LTD,450014,591.15,-
BEIS,Met Office,2020-12-22,11 SERVICES,CHIEF FINANCIAL OFFICER,SURE SOUTH ATLANTIC LTD,450341,1393.13,NOVATREG
BEIS,Met Office,2020-12-22,11 SERVICES,CHIEF FINANCIAL OFFICER,SURE SOUTH ATLANTIC LTD (ST HELENA),450377,2370.97,30005
BEIS,Met Office,2020-12-18,07 EQUIPMENT,OPERATIONS,SWALE TECHNOLOGIES LTD,448762,-3982.21,530846451
BEIS,Met Office,2020-12-18,07 EQUIPMENT,OPERATIONS,SWALE TECHNOLOGIES LTD,449042,3982.21,530846451
BEIS,Met Office,2020-12-22,11 SERVICES,CORPORATE,SWANTECH LOGISTICS LTD,448689,2264.83,769332401
BEIS,Met Office,2020-12-03,11 SERVICES,CORPORATE,SWANTECH LOGISTICS LTD,449590,2229.54,769332401
BEIS,Met Office,2020-12-02,11 SERVICES,CHIEF FINANCIAL OFFICER,SWISSCOM (SCHWEIZ) AG,448899,90.78,-
BEIS,Met Office,2020-12-23,11 SERVICES,CHIEF FINANCIAL OFFICER,SWISSCOM (SCHWEIZ) AG,450275,90.65,-
BEIS,Met Office,2020-12-16,11 SERVICES,GOVERNMENT SERVICES,TANZANIA METEOROLOGICAL AGENCY,450235,15000,-
BEIS,Met Office,2020-12-08,06 ACCOMMODATION,CHIEF FINANCIAL OFFICER,TENNIE FACILITIES PROPERTY MANAGEMENT LTD,449843,165.72,982055803
BEIS,Met Office,2020-12-03,06 ACCOMMODATION,CHIEF FINANCIAL OFFICER,THE CLEANING CREW COMPANY,449696,567,343579772
BEIS,Met Office,2020-12-15,FIXTURE & FITTINGS,CHIEF FINANCIAL OFFICER,THORLUX LIGHTING,450008,139.12,GB 109 939 440
BEIS,Met Office,2020-12-23,STOCK,OPERATIONS,TOTEX CORPORATION,447514,0,-
BEIS,Met Office,2020-12-23,STOCK,OPERATIONS,TOTEX CORPORATION,447514,0,-
BEIS,Met Office,2020-12-23,STOCK,OPERATIONS,TOTEX CORPORATION,447514,0,-
BEIS,Met Office,2020-12-23,STOCK,OPERATIONS,TOTEX CORPORATION,447514,0,-
BEIS,Met Office,2020-12-23,STOCK,OPERATIONS,TOTEX CORPORATION,447514,0,-
BEIS,Met Office,2020-12-23,STOCK,OPERATIONS,TOTEX CORPORATION,447514,0,-
BEIS,Met Office,2020-12-23,STOCK,OPERATIONS,TOTEX CORPORATION,447514,0,-
BEIS,Met Office,2020-12-23,STOCK,OPERATIONS,TOTEX CORPORATION,447514,320,-
BEIS,Met Office,2020-12-23,STOCK,OPERATIONS,TOTEX CORPORATION,447514,6964.2,-
BEIS,Met Office,2020-12-23,STOCK,OPERATIONS,TOTEX CORPORATION,447514,12210,-
BEIS,Met Office,2020-12-23,STOCK,OPERATIONS,TOTEX CORPORATION,447514,12733.2,-
BEIS,Met Office,2020-12-23,STOCK,OPERATIONS,TOTEX CORPORATION,447514,8613,-
BEIS,Met Office,2020-12-23,STOCK,OPERATIONS,TOTEX CORPORATION,447514,4267.2,-
BEIS,Met Office,2020-12-23,STOCK,OPERATIONS,TOTEX CORPORATION,447514,4560,-
BEIS,Met Office,2020-12-17,08 SOFTWARE LICENCES,CORPORATE,TOWERS WATSON LIMITED,448440,4461,334128970
BEIS,Met Office,2020-12-08,12 INTERNATIONAL,OPERATIONS,TRIPOS CONSULTANTS,449725,4473.22,610652671
BEIS,Met Office,2020-12-16,11 SERVICES,STRATEGIC INVESTMENT,UCAR INCOMING PAYMENTS,10048,4507.92,-
BEIS,Met Office,2020-12-02,11 SERVICES,STRATEGIC INVESTMENT,UCAR INCOMING PAYMENTS,9989,9007.8,-
BEIS,Met Office,2020-12-08,11 SERVICES,GOVERNMENT SERVICES,UK ATOMIC ENERGY AUTHORITY,449794,19000,GB570101391
BEIS,Met Office,2020-12-17,11 SERVICES,GOVERNMENT SERVICES,UK ATOMIC ENERGY AUTHORITY,450223,55000,GB570101391
BEIS,Met Office,2020-12-15,11 SERVICES,GOVERNMENT SERVICES,UK CENTRE FOR ECOLOGY & HYDROLOGY (UKCEH),449557,47000,336940192
BEIS,Met Office,2020-12-22,11 SERVICES,BUSINESS GROUP,UK GBC,449775,1840,919924779
BEIS,Met Office,2020-12-17,11 SERVICES,OPERATIONS,UK TELEMATICS LIMITED,447406,857.49,GB763051643
BEIS,Met Office,2020-12-17,11 SERVICES,OPERATIONS,UK TELEMATICS LIMITED,447410,285.83,GB763051643
BEIS,Met Office,2020-12-17,11 SERVICES,OPERATIONS,UK TELEMATICS LIMITED,447412,571.66,GB763051643
BEIS,Met Office,2020-12-17,11 SERVICES,OPERATIONS,UK TELEMATICS LIMITED,448315,167.76,GB763051643
BEIS,Met Office,2020-12-17,11 SERVICES,OPERATIONS,UK TELEMATICS LIMITED,448316,-167.76,GB763051643
BEIS,Met Office,2020-12-17,11 SERVICES,OPERATIONS,UK TELEMATICS LIMITED,448318,-251.64,GB763051643
BEIS,Met Office,2020-12-17,11 SERVICES,OPERATIONS,UK TELEMATICS LIMITED,448342,-83.88,GB763051643
BEIS,Met Office,2020-12-17,11 SERVICES,OPERATIONS,UK TELEMATICS LIMITED,448343,251.64,GB763051643
BEIS,Met Office,2020-12-17,11 SERVICES,OPERATIONS,UK TELEMATICS LIMITED,448344,83.88,GB763051643
BEIS,Met Office,2020-12-03,11 SERVICES,TECHNOLOGY,UKCLOUD LTD,449747,1613.88,172647982
BEIS,Met Office,2020-12-17,11 SERVICES,GOVERNMENT SERVICES,ULTRA ELECTRONICS LTD NUCLEAR CONTROL SYSTEMS,449375,232304.62,123340754
BEIS,Met Office,2020-12-17,11 SERVICES,GOVERNMENT SERVICES,ULTRA ELECTRONICS LTD NUCLEAR CONTROL SYSTEMS,449376,7905.11,123340754
BEIS,Met Office,2020-12-17,11 SERVICES,GOVERNMENT SERVICES,ULTRA ELECTRONICS LTD NUCLEAR CONTROL SYSTEMS,449378,7905.11,123340754
BEIS,Met Office,2020-12-15,11 SERVICES,GOVERNMENT SERVICES,ULTRA ELECTRONICS LTD NUCLEAR CONTROL SYSTEMS,449972,4700.13,123340754
BEIS,Met Office,2020-12-08,06 ACCOMMODATION,CHIEF FINANCIAL OFFICER,UNDER ONE ROOF (EAST ANGLIA) LIMITED,449765,230,157127804
BEIS,Met Office,2020-12-17,13 MISCELLANEOUS,SCIENCE,University College London,450087,1000,524371168
BEIS,Met Office,2020-12-15,13 MISCELLANEOUS,SCIENCE,University College London,450089,1687.5,524371168
BEIS,Met Office,2020-12-15,11 SERVICES,GOVERNMENT SERVICES,UNIVERSITY OF EAST ANGLIA,449387,84057.36,595183505
BEIS,Met Office,2020-12-10,11 SERVICES,GOVERNMENT SERVICES,UNIVERSITY OF EXETER,447495,98916,142047795
BEIS,Met Office,2020-12-01,11 SERVICES,SCIENCE,UNIVERSITY OF EXETER,449431,2769.27,142047795
BEIS,Met Office,2020-12-03,11 SERVICES,GOVERNMENT SERVICES,University Of Leeds,449411,44000,613451470
BEIS,Met Office,2020-12-01,11 SERVICES,SCIENCE,University Of Leeds,449460,3163.68,613451470
BEIS,Met Office,2020-12-08,11 SERVICES,GOVERNMENT SERVICES,UNIVERSITY OF OXFORD,449689,15408.36,125506730
BEIS,Met Office,2020-12-22,11 SERVICES,GOVERNMENT SERVICES,UNIVERSITY OF OXFORD,450252,3000,125506730
BEIS,Met Office,2020-12-17,13 MISCELLANEOUS,SCIENCE,University Of Reading,438947,400,200012659
BEIS,Met Office,2020-12-08,11 SERVICES,GOVERNMENT SERVICES,University Of Reading,448086,19833.46,200012659
BEIS,Met Office,2020-12-08,11 SERVICES,GOVERNMENT SERVICES,University Of Reading,448408,-19833.46,200012659
BEIS,Met Office,2020-12-08,11 SERVICES,GOVERNMENT SERVICES,University Of Reading,449094,80000,200012659
BEIS,Met Office,2020-12-08,11 SERVICES,GOVERNMENT SERVICES,University Of Reading,449414,-80000,200012659
BEIS,Met Office,2020-12-08,11 SERVICES,OPERATIONS,University Of Reading,449830,4500,200012659
BEIS,Met Office,2020-12-08,13 MISCELLANEOUS,SCIENCE,University Of Reading,449831,1687.5,200012659
BEIS,Met Office,2020-12-22,11 SERVICES,GOVERNMENT SERVICES,University Of Reading,450379,10833.46,200012659
BEIS,Met Office,2020-12-22,11 SERVICES,GOVERNMENT SERVICES,UNIVERSITY OF SUSSEX,449418,44511.3,692712320
BEIS,Met Office,2020-12-22,11 SERVICES,OPERATIONS,VAISALA LTD,450266,648.5,336100011
BEIS,Met Office,2020-12-22,11 SERVICES,OPERATIONS,VAISALA LTD,450266,12084,336100011
BEIS,Met Office,2020-12-22,11 SERVICES,GOVERNMENT SERVICES,VAISALA LTD,450352,97848.34,336100011
BEIS,Met Office,2020-12-23,11 SERVICES,OPERATIONS,VAISALA OYJ,22029,2750.62,FI01244162
BEIS,Met Office,2020-12-09,STOCK,OPERATIONS,VAISALA OYJ,22030,0,FI01244162
BEIS,Met Office,2020-12-09,STOCK,OPERATIONS,VAISALA OYJ,22030,81995.6,FI01244162
BEIS,Met Office,2020-12-23,STOCK,OPERATIONS,VAISALA OYJ,22044,0,FI01244162
BEIS,Met Office,2020-12-23,STOCK,OPERATIONS,VAISALA OYJ,22044,0,FI01244162
BEIS,Met Office,2020-12-23,STOCK,OPERATIONS,VAISALA OYJ,22044,0,FI01244162
BEIS,Met Office,2020-12-23,STOCK,OPERATIONS,VAISALA OYJ,22044,0,FI01244162
BEIS,Met Office,2020-12-23,STOCK,OPERATIONS,VAISALA OYJ,22044,4247.68,FI01244162
BEIS,Met Office,2020-12-23,STOCK,OPERATIONS,VAISALA OYJ,22044,6926.16,FI01244162
BEIS,Met Office,2020-12-23,STOCK,OPERATIONS,VAISALA OYJ,22044,6899.1,FI01244162
BEIS,Met Office,2020-12-23,STOCK,OPERATIONS,VAISALA OYJ,22044,13753.11,FI01244162
BEIS,Met Office,2020-12-23,07 EQUIPMENT,OPERATIONS,VAISALA OYJ,22053,5101.31,FI01244162
BEIS,Met Office,2020-12-23,07 EQUIPMENT,OPERATIONS,VAISALA OYJ,22054,3876.99,FI01244162
BEIS,Met Office,2020-12-23,STOCK,OPERATIONS,VAISALA OYJ,22066,0,FI01244162
BEIS,Met Office,2020-12-23,STOCK,OPERATIONS,VAISALA OYJ,22066,0,FI01244162
BEIS,Met Office,2020-12-23,STOCK,OPERATIONS,VAISALA OYJ,22066,46652.41,FI01244162
BEIS,Met Office,2020-12-23,STOCK,OPERATIONS,VAISALA OYJ,22066,12018.91,FI01244162
BEIS,Met Office,2020-12-23,STOCK,OPERATIONS,VAISALA OYJ,22067,0,FI01244162
BEIS,Met Office,2020-12-23,STOCK,OPERATIONS,VAISALA OYJ,22067,3904.63,FI01244162
BEIS,Met Office,2020-12-23,07 EQUIPMENT,OPERATIONS,VAISALA OYJ,22072,6247.23,FI01244162
BEIS,Met Office,2020-12-23,STOCK,OPERATIONS,VAISALA OYJ,22073,0,FI01244162
BEIS,Met Office,2020-12-23,STOCK,OPERATIONS,VAISALA OYJ,22073,0,FI01244162
BEIS,Met Office,2020-12-23,STOCK,OPERATIONS,VAISALA OYJ,22073,1090.49,FI01244162
BEIS,Met Office,2020-12-23,STOCK,OPERATIONS,VAISALA OYJ,22073,1246.78,FI01244162
BEIS,Met Office,2020-12-23,07 EQUIPMENT,OPERATIONS,VAISALA OYJ,22074,10697.9,FI01244162
BEIS,Met Office,2020-12-23,STOCK,OPERATIONS,VAISALA OYJ,22075,0,FI01244162
BEIS,Met Office,2020-12-23,STOCK,OPERATIONS,VAISALA OYJ,22075,0,FI01244162
BEIS,Met Office,2020-12-23,STOCK,OPERATIONS,VAISALA OYJ,22075,3907.29,FI01244162
BEIS,Met Office,2020-12-23,STOCK,OPERATIONS,VAISALA OYJ,22075,80738.83,FI01244162
BEIS,Met Office,2020-12-23,07 EQUIPMENT,OPERATIONS,VAISALA OYJ,22076,3623.39,FI01244162
BEIS,Met Office,2020-12-10,06 ACCOMMODATION,CHIEF FINANCIAL OFFICER,VICKERY HOLMAN,449955,4015.62,943875678
BEIS,Met Office,2020-12-22,11 SERVICES,CHIEF FINANCIAL OFFICER,VIRGIN MEDIA BUSINESS,449874,19997.5,591819014
BEIS,Met Office,2020-12-03,04 CONTRACTORS,CHIEF FINANCIAL OFFICER,WA CONSULTANTS LTD,449640,8672,876328977
BEIS,Met Office,2020-12-03,04 CONTRACTORS,CHIEF FINANCIAL OFFICER,WA CONSULTANTS LTD,449641,6962,876328977
BEIS,Met Office,2020-12-03,04 CONTRACTORS,TECHNOLOGY,WA CONSULTANTS LTD,449642,9723.67,876328977
BEIS,Met Office,2020-12-03,04 CONTRACTORS,TECHNOLOGY,WA CONSULTANTS LTD,449643,11305,876328977
BEIS,Met Office,2020-12-03,04 CONTRACTORS,STRATEGIC INVESTMENT,WA CONSULTANTS LTD,449644,8772.2,876328977
BEIS,Met Office,2020-12-03,04 CONTRACTORS,TECHNOLOGY,WA CONSULTANTS LTD,449645,13271.12,876328977
BEIS,Met Office,2020-12-03,04 CONTRACTORS,OPERATIONS,WA CONSULTANTS LTD,449646,10450,876328977
BEIS,Met Office,2020-12-03,04 CONTRACTORS,CHIEF FINANCIAL OFFICER,WA CONSULTANTS LTD,449647,10520,876328977
BEIS,Met Office,2020-12-03,04 CONTRACTORS,TECHNOLOGY,WA CONSULTANTS LTD,449680,14000,876328977
BEIS,Met Office,2020-12-03,04 CONTRACTORS,GOVERNMENT SERVICES,WA CONSULTANTS LTD,449681,1694,876328977
BEIS,Met Office,2020-12-03,04 CONTRACTORS,SUPERCOMPUTING,WA CONSULTANTS LTD,449706,20517.2,876328977
BEIS,Met Office,2020-12-08,04 CONTRACTORS,GOVERNMENT SERVICES,WA CONSULTANTS LTD,449713,3780,876328977
BEIS,Met Office,2020-12-03,04 CONTRACTORS,CHIEF FINANCIAL OFFICER,WA CONSULTANTS LTD,449755,2520,876328977
BEIS,Met Office,2020-12-03,04 CONTRACTORS,STRATEGIC INVESTMENT,WA CONSULTANTS LTD,449756,12000,876328977
BEIS,Met Office,2020-12-03,04 CONTRACTORS,CHIEF FINANCIAL OFFICER,WA CONSULTANTS LTD,449757,15000,876328977
BEIS,Met Office,2020-12-03,04 CONTRACTORS,TECHNOLOGY,WA CONSULTANTS LTD,449758,12750,876328977
BEIS,Met Office,2020-12-03,04 CONTRACTORS,GOVERNMENT SERVICES,WA CONSULTANTS LTD,449759,3240,876328977
BEIS,Met Office,2020-12-03,04 CONTRACTORS,TECHNOLOGY,WA CONSULTANTS LTD,449760,11636.6,876328977
BEIS,Met Office,2020-12-03,04 CONTRACTORS,GOVERNMENT SERVICES,WA CONSULTANTS LTD,449761,906,876328977
BEIS,Met Office,2020-12-15,04 CONTRACTORS,TECHNOLOGY,WA CONSULTANTS LTD,449762,8951.2,876328977
BEIS,Met Office,2020-12-10,04 CONTRACTORS,TECHNOLOGY,WA CONSULTANTS LTD,449766,10877.8,876328977
BEIS,Met Office,2020-12-03,04 CONTRACTORS,TECHNOLOGY,WA CONSULTANTS LTD,449767,12360,876328977
BEIS,Met Office,2020-12-03,04 CONTRACTORS,STRATEGIC INVESTMENT,WA CONSULTANTS LTD,449768,8752.4,876328977
BEIS,Met Office,2020-12-03,04 CONTRACTORS,STRATEGIC INVESTMENT,WA CONSULTANTS LTD,449769,10229.03,876328977
BEIS,Met Office,2020-12-03,04 CONTRACTORS,TECHNOLOGY,WA CONSULTANTS LTD,449770,10754.57,876328977
BEIS,Met Office,2020-12-10,04 CONTRACTORS,TECHNOLOGY,WA CONSULTANTS LTD,449983,-10877.8,876328977
BEIS,Met Office,2020-12-10,04 CONTRACTORS,TECHNOLOGY,WA CONSULTANTS LTD,449985,10870.4,876328977
BEIS,Met Office,2020-12-10,04 CONTRACTORS,TECHNOLOGY,WA CONSULTANTS LTD,449986,8915.6,876328977
BEIS,Met Office,2020-12-10,04 CONTRACTORS,TECHNOLOGY,WA CONSULTANTS LTD,449987,8469.82,876328977
BEIS,Met Office,2020-12-10,04 CONTRACTORS,TECHNOLOGY,WA CONSULTANTS LTD,449988,-8503.64,876328977
BEIS,Met Office,2020-12-10,04 CONTRACTORS,TECHNOLOGY,WA CONSULTANTS LTD,449989,7578.26,876328977
BEIS,Met Office,2020-12-10,04 CONTRACTORS,TECHNOLOGY,WA CONSULTANTS LTD,449990,-8951.2,876328977
BEIS,Met Office,2020-12-10,04 CONTRACTORS,TECHNOLOGY,WA CONSULTANTS LTD,449991,2228.9,876328977
BEIS,Met Office,2020-12-10,04 CONTRACTORS,TECHNOLOGY,WA CONSULTANTS LTD,449992,-7608.52,876328977
BEIS,Met Office,2020-12-10,04 CONTRACTORS,TECHNOLOGY,WA CONSULTANTS LTD,449994,-2237.8,876328977
BEIS,Met Office,2020-12-08,11 SERVICES,CHIEF FINANCIAL OFFICER,WEBEX COMMUNICATIONS UK LTD,449682,676.31,815974302
BEIS,Met Office,2020-12-08,11 SERVICES,TECHNOLOGY,WIREFAST LTD,449714,6995.71,749536001
BEIS,Met Office,2020-12-08,11 SERVICES,TECHNOLOGY,WIREFAST LTD,449715,52.48,749536001
BEIS,Met Office,2020-12-22,11 SERVICES,TECHNOLOGY,WIREFAST LTD,450326,1180.57,749536001
BEIS,Met Office,2020-12-22,11 SERVICES,TECHNOLOGY,WIREFAST LTD,450327,4313.64,749536001
BEIS,Met Office,2020-12-03,11 SERVICES,OPERATIONS,WORLDPAY LTD,449719,21.95,991280207
BEIS,Met Office,2020-12-10,11 SERVICES,OPERATIONS,WORLDPAY LTD,450003,24.55,991280207
BEIS,Met Office,2020-12-10,11 SERVICES,OPERATIONS,WORLDPAY LTD,450004,20.35,991280207
BEIS,Met Office,2020-12-10,11 SERVICES,OPERATIONS,WORLDPAY LTD,450005,19.95,991280207
BEIS,Met Office,2020-12-15,FIXTURE & FITTINGS,CHIEF FINANCIAL OFFICER,XEIAD,450080,2640,811321091
BEIS,Met Office,2020-12-15,FIXTURE & FITTINGS,CHIEF FINANCIAL OFFICER,XEIAD,450080,4231.22,811321091
BEIS,Met Office,2020-12-15,10 EQUIPMENT MAINTENANCE,OPERATIONS,YOUNG CALIBRATION LIMITED,449980,1350,673900720
BEIS,Met Office,2020-12-15,11 SERVICES,OPERATIONS,YOUNG CALIBRATION LIMITED,449980,10,673900720
BEIS,Met Office,2020-12-15,10 EQUIPMENT MAINTENANCE,OPERATIONS,YOUNG CALIBRATION LIMITED,449981,3250,673900720
BEIS,Met Office,2020-12-15,11 SERVICES,OPERATIONS,YOUNG CALIBRATION LIMITED,449981,10,673900720
